Workbook

Sheet Information
A1: Purpose of template:
A2: To estimate an age and sex profile of migration following the Castro Model.
A3: General description of the template:
A4: There are a total of three worksheets (Information (this sheet), Migration Model and Adjustments). The major worksheet is the Migration Model worksheet. It differentiates basically between two types of migration: 1. labor and 2. family migration. It also allows the user to distinguish between male and female migration flows and emigration- and immigration-dominated flows. The Adjustments worksheet allows the user to adjust the numbers by hand and obtain a corresponding graph. Helper sheets to this template are hidden, but must not be deleted.
A5: Use:
A6: One only has to enter a value for the net flow (net migrants) and decide on the model one wants to use (always decide on the net value first and then choose the model). One should enter a positive number for immigration-dominated flows and a negative number for emigration-dominated flows. If one, by mistake, enters a positive net inflow number and decides on an emigration-dominated model, one will automatically be moved to the corresponding immigration-dominated model. The values that can be picked up for use in Abacus are given in the first range of cells highlighted (values in 1000).

Sheet Migration Model
A1: Migration by Age and Sex According to Castro | N1: Migration Model
A4: Net Migrants | B4: 2000
B11: Values in 1000
B12: Migration Numbers | D12: Distribution
A13: Age | B13: Male | C13: Female | D13: Male | E13: Female
A14: 0-4 | B14: =+B36/1000 -> 0.0616581419 | C14: 0.06160539433 | D14: =+D36 -> 0.0616581419 | E14: 0.06160539433
A15: 5-9 | B15: 0.02679651801 | C15: 0.02677359401 | D15: 0.02679651801 | E15: 0.02677359401
A16: 10-14 | B16: 0.02054223954 | C16: 0.02189966733 | D16: 0.02054223954 | E16: 0.02189966733
A17: 15-19 | B17: 0.1047408455 | C17: 0.1157826188 | D17: 0.1047408455 | E17: 0.1157826188
A18: 20-24 | B18: 0.1885232687 | C18: 0.2014758411 | D18: 0.1885232687 | E18: 0.2014758411
A19: 25-29 | B19: 0.1811833035 | C19: 0.1865482011 | D19: 0.1811833035 | E19: 0.1865482011
A20: 30-34 | B20: 0.1372260764 | C20: 0.1360621372 | D20: 0.1372260764 | E20: 0.1360621372
A21: 35-39 | B21: 0.09517501922 | C21: 0.09086598307 | D21: 0.09517501922 | E21: 0.09086598307
A22: 40-44 | B22: 0.06390955687 | C22: 0.05874915282 | D22: 0.06390955687 | E22: 0.05874915282
A23: 45-49 | B23: 0.04241068477 | C23: 0.03753696708 | D23: 0.04241068477 | E23: 0.03753696708
A24: 50-54 | B24: 0.02802344797 | C24: 0.02388083507 | D24: 0.02802344797 | E24: 0.02388083507
A25: 55-59 | B25: 0.01848842223 | C25: 0.0151694755 | D25: 0.01848842223 | E25: 0.0151694755
A26: 60-64 | B26: 0.01219113268 | C26: 0.009630696033 | D26: 0.01219113268 | E26: 0.009630696033
A27: 65-69 | B27: 0.008037294661 | C27: 0.006113179798 | D27: 0.008037294661 | E27: 0.006113179798
A28: 70-74 | B28: 0.005298488575 | C28: 0.003880198145 | D28: 0.005298488575 | E28: 0.003880198145
A29: 75-79 | B29: 0.00349292097 | C29: 0.002462840215 | D29: 0.00349292097 | E29: 0.002462840215
A30: 80+ | B30: 0.002302638548 | C30: 0.001563218439 | D30: 0.002302638548 | E30: 0.001563218439
A31: TOTAL | B31: 1 | C31: 1 | D31: 1 | E31: 1
B34: Migration Numbers | D34: Distribution
A35: Age | B35: Male | C35: Female | D35: Male | E35: Female
A36: 2.5 | B36: 61.6581419 | C36: 61.60539433 | D36: 0.0616581419 | E36: 0.06160539433
A37: =A36+5 -> 7.5 | B37: 26.79651801 | C37: 26.77359401 | D37: 0.02679651801 | E37: 0.02677359401
A38: 12.5 | B38: 20.54223954 | C38: 21.89966733 | D38: 0.02054223954 | E38: 0.02189966733
A39: 17.5 | B39: 104.7408455 | C39: 115.7826188 | D39: 0.1047408455 | E39: 0.1157826188
A40: 22.5 | B40: 188.5232687 | C40: 201.4758411 | D40: 0.1885232687 | E40: 0.2014758411
A41: 27.5 | B41: 181.1833035 | C41: 186.5482011 | D41: 0.1811833035 | E41: 0.1865482011
A42: 32.5 | B42: 137.2260764 | C42: 136.0621372 | D42: 0.1372260764 | E42: 0.1360621372
A43: 37.5 | B43: 95.17501922 | C43: 90.86598307 | D43: 0.09517501922 | E43: 0.09086598307
A44: 42.5 | B44: 63.90955687 | C44: 58.74915282 | D44: 0.06390955687 | E44: 0.05874915282
A45: 47.5 | B45: 42.41068477 | C45: 37.53696708 | D45: 0.04241068477 | E45: 0.03753696708
A46: 52.5 | B46: 28.02344797 | C46: 23.88083507 | D46: 0.02802344797 | E46: 0.02388083507
A47: 57.5 | B47: 18.48842223 | C47: 15.1694755 | D47: 0.01848842223 | E47: 0.0151694755
A48: 62.5 | B48: 12.19113268 | C48: 9.630696033 | D48: 0.01219113268 | E48: 0.009630696033
A49: 67.5 | B49: 8.037294661 | C49: 6.113179798 | D49: 0.008037294661 | E49: 0.006113179798
A50: 72.5 | B50: 5.298488575 | C50: 3.880198145 | D50: 0.005298488575 | E50: 0.003880198145
A51: 77.5 | B51: 3.49292097 | C51: 2.462840215 | D51: 0.00349292097 | E51: 0.002462840215
A52: 82.5 | B52: 2.302638548 | C52: 1.563218439 | D52: 0.002302638548 | E52: 0.001563218439
A53: TOTAL | B53: =SUM(B36:B52) -> 1000 | C53: =SUM(C36:C52) -> 1000 | D53: =SUM(D36:D52) -> 1 | E53: =SUM(E36:E52) -> 1

Sheet Adjustments
B1: Migration Numbers | D1: Distribution
A2: Age | B2: Male | C2: Female | D2: Male | E2: Female | F2: Sex Ratio
A3: 0-4 | B3: 0.1578191026 | C3: 0.1589816628 | D3: =+(B3/$B$21) -> 0.1111907314 | E3: =+(C3/$C$21) -> 0.06160539433 | F3: =+B3/C3 -> 0.9926874574
A4: 5-9 | B4: 0.06858789926 | C4: 0.06909314583 | D4: =+(B4/$B$21) -> 0.04832329266 | E4: =+(C4/$C$21) -> 0.02677359401 | F4: =+B4/C4 -> 0.9926874574
A5: 10-14 | B5: 0.04119386775 | C5: 0.05651527052 | D5: 0.02902295228 | E5: 0.02189966733 | F5: 0.7288980017
A6: 15-19 | B6: 0.1405237094 | C6: 0.298793855 | D6: 0.09900534069 | E6: 0.1157826188 | F6: 0.4703032108
A7: 20-24 | B7: 0.244085451 | C7: 0.5199376544 | D7: 0.171969295 | E7: 0.2014758411 | F7: 0.469451383
A8: 25-29 | B8: 0.2331002109 | C8: 0.4814147124 | D8: 0.164229694 | E8: 0.1865482011 | F8: 0.484198353
A9: 30-34 | B9: 0.176152422 | C9: 0.351128096 | D9: 0.1241073882 | E9: 0.1360621372 | F9: 0.5016756676
A10: 35-39 | B10: 0.1220352289 | C10: 0.2344928595 | D10: 0.08597936579 | E10: 0.09086598307 | F10: 0.5204219399
A11: 40-44 | B11: 0.08189131547 | C11: 0.151610717 | D11: 0.05769615408 | E11: 0.05874915282 | F11: 0.5401419973
A12: 45-49 | B12: 0.05432046746 | C12: 0.09686959246 | D12: 0.03827123844 | E12: 0.03753696708 | F12: 0.5607587074
A13: 50-54 | B13: 0.03588313132 | C13: 0.06162796146 | D13: 0.02528129707 | E13: 0.02388083507 | F13: 0.582254069
A14: 55-59 | B14: 0.02366956446 | C14: 0.03914703354 | D14: 0.01667628405 | E14: 0.0151694755 | F14: 0.6046323902
A15: 60-64 | B15: 0.01560568758 | C15: 0.02485340912 | D15: 0.01099491625 | E15: 0.009630696033 | F15: 0.6279093344
A16: 65-69 | B16: 0.01028761643 | C16: 0.01577594787 | D16: 0.007248093392 | E16: 0.006113179798 | F16: 0.6521076587
A17: 70-74 | B17: 0.00678163603 | C17: 0.01001341457 | D17: 0.004777970839 | E17: 0.003880198145 | F17: 0.6772550945
A18: 75-79 | B18: 0.004470503808 | C18: 0.006355716683 | D18: 0.003149673138 | E18: 0.002462840215 | F18: 0.7033831165
A19: 80+ | B19: 0.002947024497 | C19: 0.004034112102 | D19: 0.002076312714 | E19: 0.001563218439 | F19: 0.7305261783
A21: TOTAL | B21: =SUM(B3:B20) -> 1.419354839 | C21: =SUM(C3:C20) -> 2.580645161 | D21: 1 | E21: 1 | F21: 0.55

Sheet Im_Family (hidden)
A1: Castro's model as a template
A7: Input Parameters
A8: Number of net migrants | B8: 2000
A9: SRAe | B9: 1
A10: SRAi | B10: 1
A11: Immigrant-Emigrant Ratio | B11: 0
B13: Migration Numbers | D13: Distribution
A14: Age | B14: Male | C14: Female | D14: Male | E14: Female
A15: 2.5 | B15: =IF($B$8<0,$J$39*($J$37*J52-D52)/($J$37-1),$J$39*(J52-$J$37*D52)/(1-$J$37)) -> 61.6581419 | C15: =IF($B$8<0,$J$40*($J$38*M52-G52)/($J$38-1),$J$40*(M52-$J$38*G52)/(1-$J$38)) -> 61.60539433 | D15: =B15/ABS($B$32) -> 0.0616581419 | E15: =C15/ABS($C$32) -> 0.06160539433
A16: =A15+5 -> 7.5 | B16: 26.79651801 | C16: 26.77359401 | D16: 0.02679651801 | E16: 0.02677359401
A17: 12.5 | B17: 20.54223954 | C17: 21.89966733 | D17: 0.02054223954 | E17: 0.02189966733
A18: 17.5 | B18: 104.7408455 | C18: 115.7826188 | D18: 0.1047408455 | E18: 0.1157826188
A19: 22.5 | B19: 188.5232687 | C19: 201.4758411 | D19: 0.1885232687 | E19: 0.2014758411
A20: 27.5 | B20: 181.1833035 | C20: 186.5482011 | D20: 0.1811833035 | E20: 0.1865482011
A21: 32.5 | B21: 137.2260764 | C21: 136.0621372 | D21: 0.1372260764 | E21: 0.1360621372
A22: 37.5 | B22: 95.17501922 | C22: 90.86598307 | D22: 0.09517501922 | E22: 0.09086598307
A23: 42.5 | B23: 63.90955687 | C23: 58.74915282 | D23: 0.06390955687 | E23: 0.05874915282
A24: 47.5 | B24: 42.41068477 | C24: 37.53696708 | D24: 0.04241068477 | E24: 0.03753696708
A25: 52.5 | B25: 28.02344797 | C25: 23.88083507 | D25: 0.02802344797 | E25: 0.02388083507
A26: 57.5 | B26: 18.48842223 | C26: 15.1694755 | D26: 0.01848842223 | E26: 0.0151694755
A27: 62.5 | B27: 12.19113268 | C27: 9.630696033 | D27: 0.01219113268 | E27: 0.009630696033
A28: 67.5 | B28: 8.037294661 | C28: 6.113179798 | D28: 0.008037294661 | E28: 0.006113179798
A29: 72.5 | B29: 5.298488575 | C29: 3.880198145 | D29: 0.005298488575 | E29: 0.003880198145
A30: 77.5 | B30: 3.49292097 | C30: 2.462840215 | D30: 0.00349292097 | E30: 0.002462840215
A31: 82.5 | B31: 2.302638548 | C31: 1.563218439 | D31: 0.002302638548 | E31: 0.001563218439
B32: =SUM(B15:B31) -> 1000 | C32: =SUM(C15:C31) -> 1000 | D32: =SUM(D15:D31) -> 1 | E32: =SUM(E15:E31) -> 1
A34: The section below includes all the calculations for the Castro model. Explanations can be found in Castro's appendix.
A36: Proportion child migrants | C36: Numbers of Migrants | E36: Sex Ratios | G36: Sex-specific migrant No. | I36: Sex-specific M Ratios | K36: K= | L36: =IF(B11=0,0,IF(B8<0,B11,1/B11)) -> 0
A37: Wim | B37: =($B$38/($B$10*(1-$B$38)))/(1+($B$38/($B$10*(1-$B$38)))) -> 0.1 | C37: ET | D37: =IF(B11<>0,IF(B8<0,B8/(L36-1),D38-B8),IF(B8>0,0,D38-B8)) -> 0 | E37: Sre | F37: =B9*(1-$B$40)/(1-$B$39) -> 1 | G37: Ef | H37: =D37/(F37+1) -> 0 | I37: Km | J37: =IF(B8<0,H40/H38,H38/H40) -> 0 | K37: pmue | L37: 20
A38: Wif | B38: 0.1 | C38: IT | D38: =IF(B11<>0,IF(B8<0,B8+D37,B8/(1-1/L36)),IF(B8<0,0,B8/(1-L36))) -> 2000 | E38: Sri | F38: =B10*(1-$B$38)/(1-$B$37) -> 1 | G38: Em | H38: =D37-H37 -> 0 | I38: Kf | J38: =IF(B8<0,H39/H37,H37/H39) -> 0 | K38: plae | L38: 0.2
A39: Wem | B39: =($B$40/($B$9*(1-$B$40)))/(1+($B$40/($B$9*(1-$B$40)))) -> 0.1 | G39: If | H39: =D38/(F38+1) -> 1000 | I39: Nm | J39: =H40-H38 -> 1000 | K39: pmui | L39: 25
A40: Wef | B40: 0.1 | G40: Im | H40: =D38-H39 -> 1000 | I40: Nf | J40: =H39-H37 -> 1000 | K40: plai | L40: 0.2
A42: These are constants for the Castro model. They may be varied if desired.
B43: Net Emigration Country | F43: Net Immigration Country
B44: Emigration | D44: Immigration | F44: Emigration | H44: Immigration
B45: males | C45: females | D45: males | E45: females | F45: males | G45: females | H45: males | I45: females
A46: Mean Child Migration Age | B46: 6 | C46: 6 | D46: 7 | E46: 7 | F46: 7 | G46: 7 | H46: 6 | I46: 6
A47: Mean Adult MigrationAge | B47: 32 | C47: 31 | D47: 35 | E47: 33 | F47: 35 | G47: 33 | H47: 32 | I47: 31
A50: Age | C50: MALES | F50: FEMALES | I50: MALES | L50: FEMALES
B51: ae(x) | C51: ce(x) | D51: e(x) | E51: ae(x) | F51: ce(x) | G51: e(x) | H51: ai(x) | I51: ci(x) | J51: I(x) | K51: ai(x) | L51: ci(x) | M51: I(x)
A52: 2.5 | B52: 0 | C52: =IF($B$8<0,(1/$B$46)*EXP(-A52/$B$46),(1/$F$46)*EXP(-A52/$F$46)) -> 0.09995321963 | D52: =($B$39*C52+(1-$B$39)*B52)*5/$D$69 -> 0.05594984826 | E52: 0 | F52: =IF($B$8<0,(1/$C$46)*EXP(-A52/$C$46),(1/$G$46)*EXP(-A52/$G$46)) -> 0.09995321963 | G52: =($B$40*F52+(1-$B$40)*E52)*5/$G$69 -> 0.05607562003 | H52: 0 | I52: =IF($B$8<0,(1/$D$46)*EXP(-A52/$D$46),(1/$H$46)*EXP(-A52/$H$46)) -> 0.1098734384 | J52: =($B$37*I52+(1-$B$37)*H52)*5/$J$69 -> 0.0616581419 | K52: 0 | L52: =IF($B$8<0,(1/$E$46)*EXP(-A52/$E$46),(1/$I$46)*EXP(-A52/$I$46)) -> 0.1098734384 | M52: =($B$38*L52+(1-$B$38)*K52)*5/$M$69 -> 0.06160539433
A53: =A52+5 -> 7.5 | B53: 0 | C53: 0.04893126501 | D53: 0.02738978157 | E53: 0 | F53: 0.04893126501 | G53: 0.02745135209 | H53: 0 | I53: 0.04775079948 | J53: 0.02679651801 | K53: 0 | L53: 0.04775079948 | M53: 0.02677359401
A54: 12.5 | B54: =IF($B$8<0,(1/($B$47-$L$37))*EXP((-1*((A54-$L$37)/($B$47-$L$37)))-EXP(-$L$38*(A54-$L$37))),(1/($F$47-$L$39))*EXP((-1*((A54-$L$39)/($F$47-$L$39)))-EXP(-$L$40*(A54-$L$39)))) -> 1.78680928e-06 | C54: 0.02395389268 | D54: 0.01341744079 | E54: =IF($B$8<0,(1/($C$47-$L$37))*EXP((-1*((A54-$L$37)/($C$47-$L$37)))-EXP(-$L$38*(A54-$L$37))),(1/($G$47-$L$37))*EXP((-1*((A54-$L$37)/($G$47-$L$37)))-EXP(-$L$38*(A54-$L$37)))) -> 0.001549666781 | F54: 0.02395389268 | G54: 0.02126310811 | H54: =IF($B$8<0,(1/($D$47-$L$39))*EXP((-1*((A54-$L$39)/($D$47-$L$39)))-EXP(-$L$40*(A54-$L$39))),(1/($H$47-$L$37))*EXP((-1*((A54-$L$37)/($H$47-$L$37)))-EXP(-$L$40*(A54-$L$37)))) -> 0.001761489149 | I54: 0.02075241191 | J54: 0.02054223954 | K54: =IF($B$8<0,(1/($E$47-$L$39))*EXP((-1*((A54-$L$39)/($E$47-$L$39)))-EXP(-$L$40*(A54-$L$39))),(1/($I$47-$L$37))*EXP((-1*((A54-$L$37)/($I$47-$L$37)))-EXP(-$L$40*(A54-$L$37)))) -> 0.002033969124 | L54: 0.02075241191 | M54: 0.02189966733
A55: 17.5 | B55: 0.002395234446 | C55: 0.01172642837 | D55: 0.01863080478 | E55: 0.01792851287 | F55: 0.01172642837 | G55: 0.09710281526 | H55: 0.01973632195 | I55: 0.009018961037 | J55: 0.1047408455 | K55: 0.02194219428 | L55: 0.009018961037 | M55: 0.1157826188
A56: 22.5 | B56: 0.02469124964 | C56: 0.005740575207 | D56: 0.1276039871 | E56: 0.03460394073 | F56: 0.005740575207 | G56: 0.1779416738 | H56: 0.03689162779 | I56: 0.003919624309 | J56: 0.1885232687 | K56: 0.03949036109 | L56: 0.003919624309 | M56: 0.2014758411
A57: 27.5 | B57: 0.04246327252 | C57: 0.002810250714 | D57: 0.2154963699 | E57: 0.03456192645 | F57: 0.002810250714 | G57: 0.17608557 | H57: 0.03568457309 | I57: 0.001703461703 | J57: 0.1811833035 | K57: 0.03677843486 | L57: 0.001703461703 | M57: 0.1865482011
A58: 32.5 | B58: 0.03778983027 | C58: 0.001375734798 | D58: 0.1911493161 | E58: 0.02709048235 | F58: 0.001375734798 | G58: 0.1375562046 | H58: 0.02708816628 | I58: 0.0007403214043 | J58: 0.1372260764 | K58: 0.02688077565 | L58: 0.0007403214043 | M58: 0.1360621372
A59: 37.5 | B59: 0.0263926401 | C59: 0.0006734794962 | D59: 0.133338966 | E59: 0.01942293709 | F59: 0.0006734794962 | G59: 0.09844750354 | H59: 0.0188086696 | I59: 0.000321742356 | J59: 0.09517501922 | K59: 0.01797089549 | L59: 0.000321742356 | M59: 0.09086598307
A60: 42.5 | B60: 0.01686048642 | C60: 0.0003296962703 | D60: 0.08512503548 | E60: 0.01347623406 | F60: 0.0003296962703 | G60: 0.06822873315 | H60: 0.0126383979 | I60: 0.0001398286515 | J60: 0.06390955687 | K60: 0.01162661032 | L60: 0.0001398286515 | M60: 0.05874915282
A61: 47.5 | B61: 0.01042348246 | C61: 0.0001614000593 | D61: 0.05260221417 | E61: 0.009238084276 | F61: 0.0001614000593 | G61: 0.04673518631 | H61: 0.008390458699 | I61: 6.076928146e-05 | J61: 0.04241068477 | K61: 0.007431838231 | L61: 6.076928146e-05 | M61: 0.03753696708
A62: 52.5 | B62: 0.006366713577 | C62: 7.901205288e-05 | D62: 0.03211873166 | E62: 0.006304744734 | F62: 7.901205288e-05 | G62: 0.03187804148 | H62: 0.00554563902 | I62: 2.641022085e-05 | J62: 0.02802344797 | K62: 0.004729460385 | L62: 2.641022085e-05 | M62: 0.02388083507
A63: 57.5 | B63: 0.003871595697 | C63: 3.867969149e-05 | D63: 0.01952614289 | E63: 0.004295798502 | F63: 3.867969149e-05 | G63: 0.0217119076 | H63: 0.003659386626 | I63: 1.147783467e-05 | J63: 0.01848842223 | K63: 0.003004815032 | L63: 1.147783467e-05 | M63: 0.0151694755
A64: 62.5 | B64: 0.002350474215 | C64: 1.893532036e-05 | D64: 0.01185191947 | E64: 0.002925225828 | F64: 1.893532036e-05 | G64: 0.01478057919 | H64: 0.002413259912 | I64: 4.988246385e-06 | J64: 0.01219113268 | K64: 0.00190793246 | L64: 4.988246385e-06 | M64: 0.009630696033
A65: 67.5 | B65: 0.001426133188 | C65: 9.269628155e-06 | D65: 0.007189823964 | E65: 0.001991493612 | F65: 9.269628155e-06 | G65: 0.0100605859 | H65: 0.001591123617 | I65: 2.167882942e-06 | J65: 0.008037294661 | K65: 0.001211189986 | L65: 2.167882942e-06 | M65: 0.006113179798
A66: 72.5 | B66: 0.0008651047632 | C66: 4.537869151e-06 | D66: 0.004360802151 | E66: 0.001355698537 | F66: 4.537869151e-06 | G66: 0.006847695257 | H66: 0.001048982968 | I66: 9.42158043e-07 | J66: 0.005298488575 | K66: 0.0007688227709 | L66: 9.42158043e-07 | M66: 0.003880198145
A67: 77.5 | B67: 0.0005247373903 | C67: 2.221475995e-06 | D67: 0.002644788117 | E67: 0.0009228568656 | F67: 2.221475995e-06 | G67: 0.00466090548 | H67: 0.00069154423 | I67: 4.094601976e-07 | J67: 0.00349292097 | K67: 0.0004880083068 | L67: 4.094601976e-07 | M67: 0.002462840215
A68: 82.5 | B68: 0.0003182748555 | C68: 1.087505045e-06 | D68: 0.001604027516 | E68: 0.000628204133 | F68: 1.087505045e-06 | G68: 0.003172518205 | H68: 0.0004558969733 | I68: 1.779506683e-07 | J68: 0.002302638548 | K68: 0.0003097586286 | L68: 1.779506683e-07 | M68: 0.001563218439
B69: =SUM(B52:B68) -> 0.1767410163 | C69: =SUM(C52:C68) -> 0.1958096858 | D69: =($B$39*C69+(1-$B$39)*B69)*5 -> 0.8932394164 | E69: =SUM(E52:E68) -> 0.1762958068 | F69: =SUM(F52:F68) -> 0.1958096858 | G69: =($B$40*F69+(1-$B$40)*E69)*5 -> 0.8912359735 | H69: =SUM(H52:H68) -> 0.1764055378 | I69: =SUM(I52:I68) -> 0.1943279322 | J69: =($B$37*I69+(1-$B$37)*H69)*5 -> 0.8909888863 | K69: =SUM(K52:K68) -> 0.1765750666 | L69: =SUM(L52:L68) -> 0.1943279322 | M69: =($B$38*L69+(1-$B$38)*K69)*5 -> 0.8917517659

Sheet Im_MLabor (hidden)
A1: Castro's model as a template
A7: Input Parameters
A8: Number of net migrants | B8: 2000
A9: SRAe | B9: 1
A10: SRAi | B10: 2
A11: Immigrant-Emigrant Ratio | B11: 0
B13: Migration Numbers | D13: Distribution
A14: Age | B14: Male | C14: Female | D14: Male | E14: Female
A15: 2.5 | B15: =IF($B$8<0,$J$39*($J$37*J52-D52)/($J$37-1),$J$39*(J52-$J$37*D52)/(1-$J$37)) -> 42.72641021 | C15: =IF($B$8<0,$J$40*($J$38*M52-G52)/($J$38-1),$J$40*(M52-$J$38*G52)/(1-$J$38)) -> 42.48647885 | D15: =B15/ABS($B$32) -> 0.03260699727 | E15: =C15/ABS($C$32) -> 0.06160539433
A16: =A15+5 -> 7.5 | B16: =IF($B$8<0,$J$39*($J$37*J53-D53)/($J$37-1),$J$39*(J53-$J$37*D53)/(1-$J$37)) -> 18.56882134 | C16: 18.46454759 | D16: 0.0141709426 | E16: 0.02677359401
A17: 12.5 | B17: 20.39978034 | C17: 15.10321885 | D17: 0.01556825342 | E17: 0.02189966733
A18: 17.5 | B18: 141.6545021 | C18: 79.85008194 | D18: 0.1081047516 | E18: 0.1157826188
A19: 22.5 | B19: 259.7526272 | C19: 138.9488559 | D19: 0.1982322682 | E19: 0.2014758411
A20: 27.5 | B20: 250.4418717 | C20: 128.6539318 | D20: 0.1911266915 | E20: 0.1865482011
A21: 32.5 | B21: 189.8955149 | C21: 93.83595669 | D21: 0.1449202614 | E21: 0.1360621372
A22: 37.5 | B22: 131.7791807 | C22: 62.66619522 | D22: 0.1005683221 | E22: 0.09086598307
A23: 42.5 | B23: 88.51871063 | C23: 40.51665712 | D23: 0.06755375285 | E23: 0.05874915282
A24: 47.5 | B24: 58.75388805 | C24: 25.8875635 | D24: 0.04483849351 | E24: 0.03753696708
A25: 52.5 | B25: 38.82779073 | C25: 16.46954143 | D25: 0.02963173503 | E25: 0.02388083507
A26: 57.5 | B26: 25.61888135 | C26: 10.46170724 | D26: 0.01955125155 | E26: 0.0151694755
A27: 62.5 | B27: 16.89390949 | C27: 6.641859333 | D27: 0.0128927204 | E27: 0.009630696033
A28: 67.5 | B28: 11.13814813 | C28: 4.215986068 | D28: 0.00850016568 | E28: 0.006113179798
A29: 72.5 | B29: 7.342877821 | C29: 2.675998721 | D29: 0.005603775179 | E29: 0.003880198145
A30: 77.5 | B30: 4.840725354 | C30: 1.698510493 | D30: 0.003694237771 | E30: 0.002462840215
A31: 82.5 | B31: 3.191187498 | C31: 1.078081682 | D31: 0.002435379933 | E31: 0.001563218439
B32: =SUM(B15:B31) -> 1310.344828 | C32: =SUM(C15:C31) -> 689.6551724 | D32: =SUM(D15:D31) -> 1 | E32: =SUM(E15:E31) -> 1
A34: The section below includes all the calculations for the Castro model. Explanations can be found in Castro's appendix.
A36: Proportion child migrants | C36: Numbers of Migrants | E36: Sex Ratios | G36: Sex-specific migrant No. | I36: Sex-specific M Ratios | K36: K= | L36: =IF(B11=0,0,IF(B8<0,B11,1/B11)) -> 0
A37: Wim | B37: =($B$38/($B$10*(1-$B$38)))/(1+($B$38/($B$10*(1-$B$38)))) -> 0.05263157895 | C37: ET | D37: =IF(B11<>0,IF(B8<0,B8/(L36-1),D38-B8),IF(B8>0,0,D38-B8)) -> 0 | E37: Sre | F37: =B9*(1-$B$40)/(1-$B$39) -> 1 | G37: Ef | H37: =D37/(F37+1) -> 0 | I37: Km | J37: =IF(B8<0,H40/H38,H38/H40) -> 0 | K37: pmue | L37: 20
A38: Wif | B38: 0.1 | C38: IT | D38: =IF(B11<>0,IF(B8<0,B8+D37,B8/(1-1/L36)),IF(B8<0,0,B8/(1-L36))) -> 2000 | E38: Sri | F38: =B10*(1-$B$38)/(1-$B$37) -> 1.9 | G38: Em | H38: =D37-H37 -> 0 | I38: Kf | J38: =IF(B8<0,H39/H37,H37/H39) -> 0 | K38: plae | L38: 0.2
A39: Wem | B39: =($B$40/($B$9*(1-$B$40)))/(1+($B$40/($B$9*(1-$B$40)))) -> 0.1 | G39: If | H39: =D38/(F38+1) -> 689.6551724 | I39: Nm | J39: =H40-H38 -> 1310.344828 | K39: pmui | L39: 25
A40: Wef | B40: 0.1 | G40: Im | H40: =D38-H39 -> 1310.344828 | I40: Nf | J40: =H39-H37 -> 689.6551724 | K40: plai | L40: 0.2
A42: These are constants for the Castro model. They may be varied if desired.
B43: Net Emigration Country | F43: Net Immigration Country
B44: Emigration | D44: Immigration | F44: Emigration | H44: Immigration
B45: males | C45: females | D45: males | E45: females | F45: males | G45: females | H45: males | I45: females
A46: Mean Child Migration Age | B46: 6 | C46: 6 | D46: 7 | E46: 7 | F46: 7 | G46: 7 | H46: 6 | I46: 6
A47: Mean Adult MigrationAge | B47: 32 | C47: 31 | D47: 35 | E47: 33 | F47: 35 | G47: 33 | H47: 32 | I47: 31
A50: Age | C50: MALES | F50: FEMALES | I50: MALES | L50: FEMALES
B51: ae(x) | C51: ce(x) | D51: e(x) | E51: ae(x) | F51: ce(x) | G51: e(x) | H51: ai(x) | I51: ci(x) | J51: I(x) | K51: ai(x) | L51: ci(x) | M51: I(x)
A52: 2.5 | B52: 0 | C52: =IF($B$8<0,(1/$B$46)*EXP(-A52/$B$46),(1/$F$46)*EXP(-A52/$F$46)) -> 0.09995321963 | D52: =($B$39*C52+(1-$B$39)*B52)*5/$D$69 -> 0.05594984826 | E52: 0 | F52: =IF($B$8<0,(1/$C$46)*EXP(-A52/$C$46),(1/$G$46)*EXP(-A52/$G$46)) -> 0.09995321963 | G52: =($B$40*F52+(1-$B$40)*E52)*5/$G$69 -> 0.05607562003 | H52: 0 | I52: =IF($B$8<0,(1/$D$46)*EXP(-A52/$D$46),(1/$H$46)*EXP(-A52/$H$46)) -> 0.1098734384 | J52: =($B$37*I52+(1-$B$37)*H52)*5/$J$69 -> 0.03260699727 | K52: 0 | L52: =IF($B$8<0,(1/$E$46)*EXP(-A52/$E$46),(1/$I$46)*EXP(-A52/$I$46)) -> 0.1098734384 | M52: =($B$38*L52+(1-$B$38)*K52)*5/$M$69 -> 0.06160539433
A53: =A52+5 -> 7.5 | B53: 0 | C53: 0.04893126501 | D53: 0.02738978157 | E53: 0 | F53: 0.04893126501 | G53: 0.02745135209 | H53: 0 | I53: 0.04775079948 | J53: 0.0141709426 | K53: 0 | L53: 0.04775079948 | M53: 0.02677359401
A54: 12.5 | B54: =IF($B$8<0,(1/($B$47-$L$37))*EXP((-1*((A54-$L$37)/($B$47-$L$37)))-EXP(-$L$38*(A54-$L$37))),(1/($F$47-$L$39))*EXP((-1*((A54-$L$39)/($F$47-$L$39)))-EXP(-$L$40*(A54-$L$39)))) -> 1.78680928e-06 | C54: 0.02395389268 | D54: 0.01341744079 | E54: =IF($B$8<0,(1/($C$47-$L$37))*EXP((-1*((A54-$L$37)/($C$47-$L$37)))-EXP(-$L$38*(A54-$L$37))),(1/($G$47-$L$37))*EXP((-1*((A54-$L$37)/($G$47-$L$37)))-EXP(-$L$38*(A54-$L$37)))) -> 0.001549666781 | F54: 0.02395389268 | G54: 0.02126310811 | H54: =IF($B$8<0,(1/($D$47-$L$39))*EXP((-1*((A54-$L$39)/($D$47-$L$39)))-EXP(-$L$40*(A54-$L$39))),(1/($H$47-$L$37))*EXP((-1*((A54-$L$37)/($H$47-$L$37)))-EXP(-$L$40*(A54-$L$37)))) -> 0.001761489149 | I54: 0.02075241191 | J54: 0.01556825342 | K54: =IF($B$8<0,(1/($E$47-$L$39))*EXP((-1*((A54-$L$39)/($E$47-$L$39)))-EXP(-$L$40*(A54-$L$39))),(1/($I$47-$L$37))*EXP((-1*((A54-$L$37)/($I$47-$L$37)))-EXP(-$L$40*(A54-$L$37)))) -> 0.002033969124 | L54: 0.02075241191 | M54: 0.02189966733
A55: 17.5 | B55: 0.002395234446 | C55: 0.01172642837 | D55: 0.01863080478 | E55: 0.01792851287 | F55: 0.01172642837 | G55: 0.09710281526 | H55: 0.01973632195 | I55: 0.009018961037 | J55: 0.1081047516 | K55: 0.02194219428 | L55: 0.009018961037 | M55: 0.1157826188
A56: 22.5 | B56: 0.02469124964 | C56: 0.005740575207 | D56: 0.1276039871 | E56: 0.03460394073 | F56: 0.005740575207 | G56: 0.1779416738 | H56: 0.03689162779 | I56: 0.003919624309 | J56: 0.1982322682 | K56: 0.03949036109 | L56: 0.003919624309 | M56: 0.2014758411
A57: 27.5 | B57: =IF($B$8<0,(1/($B$47-$L$37))*EXP((-1*((A57-$L$37)/($B$47-$L$37)))-EXP(-$L$38*(A57-$L$37))),(1/($F$47-$L$39))*EXP((-1*((A57-$L$39)/($F$47-$L$39)))-EXP(-$L$40*(A57-$L$39)))) -> 0.04246327252 | C57: 0.002810250714 | D57: 0.2154963699 | E57: 0.03456192645 | F57: 0.002810250714 | G57: 0.17608557 | H57: 0.03568457309 | I57: 0.001703461703 | J57: 0.1911266915 | K57: 0.03677843486 | L57: 0.001703461703 | M57: 0.1865482011
A58: 32.5 | B58: 0.03778983027 | C58: 0.001375734798 | D58: 0.1911493161 | E58: 0.02709048235 | F58: 0.001375734798 | G58: 0.1375562046 | H58: 0.02708816628 | I58: 0.0007403214043 | J58: 0.1449202614 | K58: 0.02688077565 | L58: 0.0007403214043 | M58: 0.1360621372
A59: 37.5 | B59: =IF($B$8<0,(1/($B$47-$L$37))*EXP((-1*((A59-$L$37)/($B$47-$L$37)))-EXP(-$L$38*(A59-$L$37))),(1/($F$47-$L$39))*EXP((-1*((A59-$L$39)/($F$47-$L$39)))-EXP(-$L$40*(A59-$L$39)))) -> 0.0263926401 | C59: 0.0006734794962 | D59: 0.133338966 | E59: 0.01942293709 | F59: 0.0006734794962 | G59: 0.09844750354 | H59: 0.0188086696 | I59: 0.000321742356 | J59: 0.1005683221 | K59: 0.01797089549 | L59: 0.000321742356 | M59: 0.09086598307
A60: 42.5 | B60: 0.01686048642 | C60: 0.0003296962703 | D60: 0.08512503548 | E60: 0.01347623406 | F60: 0.0003296962703 | G60: 0.06822873315 | H60: 0.0126383979 | I60: 0.0001398286515 | J60: 0.06755375285 | K60: 0.01162661032 | L60: 0.0001398286515 | M60: 0.05874915282
A61: 47.5 | B61: 0.01042348246 | C61: 0.0001614000593 | D61: 0.05260221417 | E61: 0.009238084276 | F61: 0.0001614000593 | G61: 0.04673518631 | H61: 0.008390458699 | I61: 6.076928146e-05 | J61: 0.04483849351 | K61: 0.007431838231 | L61: 6.076928146e-05 | M61: 0.03753696708
A62: 52.5 | B62: 0.006366713577 | C62: 7.901205288e-05 | D62: 0.03211873166 | E62: 0.006304744734 | F62: 7.901205288e-05 | G62: 0.03187804148 | H62: 0.00554563902 | I62: 2.641022085e-05 | J62: 0.02963173503 | K62: 0.004729460385 | L62: 2.641022085e-05 | M62: 0.02388083507
A63: 57.5 | B63: 0.003871595697 | C63: 3.867969149e-05 | D63: 0.01952614289 | E63: 0.004295798502 | F63: 3.867969149e-05 | G63: 0.0217119076 | H63: 0.003659386626 | I63: 1.147783467e-05 | J63: 0.01955125155 | K63: 0.003004815032 | L63: 1.147783467e-05 | M63: 0.0151694755
A64: 62.5 | B64: 0.002350474215 | C64: 1.893532036e-05 | D64: 0.01185191947 | E64: 0.002925225828 | F64: 1.893532036e-05 | G64: 0.01478057919 | H64: 0.002413259912 | I64: 4.988246385e-06 | J64: 0.0128927204 | K64: 0.00190793246 | L64: 4.988246385e-06 | M64: 0.009630696033
A65: 67.5 | B65: 0.001426133188 | C65: 9.269628155e-06 | D65: 0.007189823964 | E65: 0.001991493612 | F65: 9.269628155e-06 | G65: 0.0100605859 | H65: 0.001591123617 | I65: 2.167882942e-06 | J65: 0.00850016568 | K65: 0.001211189986 | L65: 2.167882942e-06 | M65: 0.006113179798
A66: 72.5 | B66: 0.0008651047632 | C66: 4.537869151e-06 | D66: 0.004360802151 | E66: 0.001355698537 | F66: 4.537869151e-06 | G66: 0.006847695257 | H66: 0.001048982968 | I66: 9.42158043e-07 | J66: 0.005603775179 | K66: 0.0007688227709 | L66: 9.42158043e-07 | M66: 0.003880198145
A67: 77.5 | B67: 0.0005247373903 | C67: 2.221475995e-06 | D67: 0.002644788117 | E67: 0.0009228568656 | F67: 2.221475995e-06 | G67: 0.00466090548 | H67: 0.00069154423 | I67: 4.094601976e-07 | J67: 0.003694237771 | K67: 0.0004880083068 | L67: 4.094601976e-07 | M67: 0.002462840215
A68: 82.5 | B68: 0.0003182748555 | C68: 1.087505045e-06 | D68: 0.001604027516 | E68: 0.000628204133 | F68: 1.087505045e-06 | G68: 0.003172518205 | H68: 0.0004558969733 | I68: 1.779506683e-07 | J68: 0.002435379933 | K68: 0.0003097586286 | L68: 1.779506683e-07 | M68: 0.001563218439
B69: =SUM(B52:B68) -> 0.1767410163 | C69: =SUM(C52:C68) -> 0.1958096858 | D69: =($B$39*C69+(1-$B$39)*B69)*5 -> 0.8932394164 | E69: =SUM(E52:E68) -> 0.1762958068 | F69: =SUM(F52:F68) -> 0.1958096858 | G69: =($B$40*F69+(1-$B$40)*E69)*5 -> 0.8912359735 | H69: =SUM(H52:H68) -> 0.1764055378 | I69: =SUM(I52:I68) -> 0.1943279322 | J69: =($B$37*I69+(1-$B$37)*H69)*5 -> 0.8867441086 | K69: =SUM(K52:K68) -> 0.1765750666 | L69: =SUM(L52:L68) -> 0.1943279322 | M69: =($B$38*L69+(1-$B$38)*K69)*5 -> 0.8917517659

Sheet Im_FLabor (hidden)
A1: Castro's model as a template
A7: Input Parameters
A8: Number of net migrants | B8: 2000
A9: SRAe | B9: 1
A10: SRAi | B10: 0.5
A11: Immigrant-Emigrant Ratio | B11: 0
B13: Migration Numbers | D13: Distribution
A14: Age | B14: Male | C14: Female | D14: Male | E14: Female
A15: 2.5 | B15: =IF($B$8<0,$J$39*($J$37*J52-D52)/($J$37-1),$J$39*(J52-$J$37*D52)/(1-$J$37)) -> 78.9095513 | C15: =IF($B$8<0,$J$40*($J$38*M52-G52)/($J$38-1),$J$40*(M52-$J$38*G52)/(1-$J$38)) -> 79.49083139 | D15: =B15/ABS($B$32) -> 0.1111907314 | E15: =C15/ABS($C$32) -> 0.06160539433
A16: =A15+5 -> 7.5 | B16: 34.29394963 | C16: 34.54657292 | D16: 0.04832329266 | E16: 0.02677359401
A17: 12.5 | B17: 20.59693388 | C17: 28.25763526 | D17: 0.02902295228 | E17: 0.02189966733
A18: 17.5 | B18: 70.26185468 | C18: 149.3969275 | D18: 0.09900534069 | E18: 0.1157826188
A19: 22.5 | B19: 122.0427255 | C19: 259.9688272 | D19: 0.171969295 | E19: 0.2014758411
A20: 27.5 | B20: 116.5501054 | C20: 240.7073562 | D20: 0.164229694 | E20: 0.1865482011
A21: 32.5 | B21: 88.07621099 | C21: 175.564048 | D21: 0.1241073882 | E21: 0.1360621372
A22: 37.5 | B22: 61.01761443 | C22: 117.2464298 | D22: 0.08597936579 | E22: 0.09086598307
A23: 42.5 | B23: 40.94565773 | C23: 75.80535848 | D23: 0.05769615408 | E23: 0.05874915282
A24: 47.5 | B24: 27.16023373 | C24: 48.43479623 | D24: 0.03827123844 | E24: 0.03753696708
A25: 52.5 | B25: 17.94156566 | C25: 30.81398073 | D25: 0.02528129707 | E25: 0.02388083507
A26: 57.5 | B26: 11.83478223 | C26: 19.57351677 | D26: 0.01667628405 | E26: 0.0151694755
A27: 62.5 | B27: 7.802843788 | C27: 12.42670456 | D27: 0.01099491625 | E27: 0.009630696033
A28: 67.5 | B28: 5.143808214 | C28: 7.887973933 | D28: 0.007248093392 | E28: 0.006113179798
A29: 72.5 | B29: 3.390818015 | C29: 5.006707284 | D29: 0.004777970839 | E29: 0.003880198145
A30: 77.5 | B30: 2.235251904 | C30: 3.177858342 | D30: 0.003149673138 | E30: 0.002462840215
A31: 82.5 | B31: 1.473512248 | C31: 2.017056051 | D31: 0.002076312714 | E31: 0.001563218439
B32: =SUM(B15:B31) -> 709.6774194 | C32: =SUM(C15:C31) -> 1290.322581 | D32: =SUM(D15:D31) -> 1 | E32: =SUM(E15:E31) -> 1
A34: The section below includes all the calculations for the Castro model. Explanations can be found in Castro's appendix.
A36: Proportion child migrants | C36: Numbers of Migrants | E36: Sex Ratios | G36: Sex-specific migrant No. | I36: Sex-specific M Ratios | K36: K= | L36: =IF(B11=0,0,IF(B8<0,B11,1/B11)) -> 0
A37: Wim | B37: =($B$38/($B$10*(1-$B$38)))/(1+($B$38/($B$10*(1-$B$38)))) -> 0.1818181818 | C37: ET | D37: =IF(B11<>0,IF(B8<0,B8/(L36-1),D38-B8),IF(B8>0,0,D38-B8)) -> 0 | E37: Sre | F37: =B9*(1-$B$40)/(1-$B$39) -> 1 | G37: Ef | H37: =D37/(F37+1) -> 0 | I37: Km | J37: =IF(B8<0,H40/H38,H38/H40) -> 0 | K37: pmue | L37: 20
A38: Wif | B38: 0.1 | C38: IT | D38: =IF(B11<>0,IF(B8<0,B8+D37,B8/(1-1/L36)),IF(B8<0,0,B8/(1-L36))) -> 2000 | E38: Sri | F38: =B10*(1-$B$38)/(1-$B$37) -> 0.55 | G38: Em | H38: =D37-H37 -> 0 | I38: Kf | J38: =IF(B8<0,H39/H37,H37/H39) -> 0 | K38: plae | L38: 0.2
A39: Wem | B39: =($B$40/($B$9*(1-$B$40)))/(1+($B$40/($B$9*(1-$B$40)))) -> 0.1 | G39: If | H39: =D38/(F38+1) -> 1290.322581 | I39: Nm | J39: =H40-H38 -> 709.6774194 | K39: pmui | L39: 25
A40: Wef | B40: 0.1 | G40: Im | H40: =D38-H39 -> 709.6774194 | I40: Nf | J40: =H39-H37 -> 1290.322581 | K40: plai | L40: 0.2
A42: These are constants for the Castro model. They may be varied if desired.
B43: Net Emigration Country | F43: Net Immigration Country
B44: Emigration | D44: Immigration | F44: Emigration | H44: Immigration
B45: males | C45: females | D45: males | E45: females | F45: males | G45: females | H45: males | I45: females
A46: Mean Child Migration Age | B46: 6 | C46: 6 | D46: 7 | E46: 7 | F46: 7 | G46: 7 | H46: 6 | I46: 6
A47: Mean Adult MigrationAge | B47: 32 | C47: 31 | D47: 35 | E47: 33 | F47: 35 | G47: 33 | H47: 32 | I47: 31
A50: Age | C50: MALES | F50: FEMALES | I50: MALES | L50: FEMALES
B51: ae(x) | C51: ce(x) | D51: e(x) | E51: ae(x) | F51: ce(x) | G51: e(x) | H51: ai(x) | I51: ci(x) | J51: I(x) | K51: ai(x) | L51: ci(x) | M51: I(x)
A52: 2.5 | B52: 0 | C52: =IF($B$8<0,(1/$B$46)*EXP(-A52/$B$46),(1/$F$46)*EXP(-A52/$F$46)) -> 0.09995321963 | D52: =($B$39*C52+(1-$B$39)*B52)*5/$D$69 -> 0.05594984826 | E52: 0 | F52: =IF($B$8<0,(1/$C$46)*EXP(-A52/$C$46),(1/$G$46)*EXP(-A52/$G$46)) -> 0.09995321963 | G52: =($B$40*F52+(1-$B$40)*E52)*5/$G$69 -> 0.05607562003 | H52: 0 | I52: =IF($B$8<0,(1/$D$46)*EXP(-A52/$D$46),(1/$H$46)*EXP(-A52/$H$46)) -> 0.1098734384 | J52: =($B$37*I52+(1-$B$37)*H52)*5/$J$69 -> 0.1111907314 | K52: 0 | L52: =IF($B$8<0,(1/$E$46)*EXP(-A52/$E$46),(1/$I$46)*EXP(-A52/$I$46)) -> 0.1098734384 | M52: =($B$38*L52+(1-$B$38)*K52)*5/$M$69 -> 0.06160539433
A53: =A52+5 -> 7.5 | B53: 0 | C53: 0.04893126501 | D53: 0.02738978157 | E53: 0 | F53: 0.04893126501 | G53: 0.02745135209 | H53: 0 | I53: 0.04775079948 | J53: 0.04832329266 | K53: 0 | L53: 0.04775079948 | M53: 0.02677359401
A54: 12.5 | B54: =IF($B$8<0,(1/($B$47-$L$37))*EXP((-1*((A54-$L$37)/($B$47-$L$37)))-EXP(-$L$38*(A54-$L$37))),(1/($F$47-$L$39))*EXP((-1*((A54-$L$39)/($F$47-$L$39)))-EXP(-$L$40*(A54-$L$39)))) -> 1.78680928e-06 | C54: 0.02395389268 | D54: 0.01341744079 | E54: =IF($B$8<0,(1/($C$47-$L$37))*EXP((-1*((A54-$L$37)/($C$47-$L$37)))-EXP(-$L$38*(A54-$L$37))),(1/($G$47-$L$37))*EXP((-1*((A54-$L$37)/($G$47-$L$37)))-EXP(-$L$38*(A54-$L$37)))) -> 0.001549666781 | F54: 0.02395389268 | G54: 0.02126310811 | H54: =IF($B$8<0,(1/($D$47-$L$39))*EXP((-1*((A54-$L$39)/($D$47-$L$39)))-EXP(-$L$40*(A54-$L$39))),(1/($H$47-$L$37))*EXP((-1*((A54-$L$37)/($H$47-$L$37)))-EXP(-$L$40*(A54-$L$37)))) -> 0.001761489149 | I54: 0.02075241191 | J54: 0.02902295228 | K54: =IF($B$8<0,(1/($E$47-$L$39))*EXP((-1*((A54-$L$39)/($E$47-$L$39)))-EXP(-$L$40*(A54-$L$39))),(1/($I$47-$L$37))*EXP((-1*((A54-$L$37)/($I$47-$L$37)))-EXP(-$L$40*(A54-$L$37)))) -> 0.002033969124 | L54: 0.02075241191 | M54: 0.02189966733
A55: 17.5 | B55: 0.002395234446 | C55: 0.01172642837 | D55: 0.01863080478 | E55: 0.01792851287 | F55: 0.01172642837 | G55: 0.09710281526 | H55: 0.01973632195 | I55: 0.009018961037 | J55: 0.09900534069 | K55: 0.02194219428 | L55: 0.009018961037 | M55: 0.1157826188
A56: 22.5 | B56: 0.02469124964 | C56: 0.005740575207 | D56: 0.1276039871 | E56: 0.03460394073 | F56: 0.005740575207 | G56: 0.1779416738 | H56: 0.03689162779 | I56: 0.003919624309 | J56: 0.171969295 | K56: 0.03949036109 | L56: 0.003919624309 | M56: 0.2014758411
A57: 27.5 | B57: 0.04246327252 | C57: 0.002810250714 | D57: 0.2154963699 | E57: 0.03456192645 | F57: 0.002810250714 | G57: 0.17608557 | H57: 0.03568457309 | I57: 0.001703461703 | J57: 0.164229694 | K57: 0.03677843486 | L57: 0.001703461703 | M57: 0.1865482011
A58: 32.5 | B58: 0.03778983027 | C58: 0.001375734798 | D58: 0.1911493161 | E58: 0.02709048235 | F58: 0.001375734798 | G58: 0.1375562046 | H58: 0.02708816628 | I58: 0.0007403214043 | J58: 0.1241073882 | K58: 0.02688077565 | L58: 0.0007403214043 | M58: 0.1360621372
A59: 37.5 | B59: 0.0263926401 | C59: 0.0006734794962 | D59: 0.133338966 | E59: 0.01942293709 | F59: 0.0006734794962 | G59: 0.09844750354 | H59: 0.0188086696 | I59: 0.000321742356 | J59: 0.08597936579 | K59: 0.01797089549 | L59: 0.000321742356 | M59: 0.09086598307
A60: 42.5 | B60: 0.01686048642 | C60: 0.0003296962703 | D60: 0.08512503548 | E60: 0.01347623406 | F60: 0.0003296962703 | G60: 0.06822873315 | H60: 0.0126383979 | I60: 0.0001398286515 | J60: 0.05769615408 | K60: 0.01162661032 | L60: 0.0001398286515 | M60: 0.05874915282
A61: 47.5 | B61: 0.01042348246 | C61: 0.0001614000593 | D61: 0.05260221417 | E61: 0.009238084276 | F61: 0.0001614000593 | G61: 0.04673518631 | H61: 0.008390458699 | I61: 6.076928146e-05 | J61: 0.03827123844 | K61: 0.007431838231 | L61: 6.076928146e-05 | M61: 0.03753696708
A62: 52.5 | B62: 0.006366713577 | C62: 7.901205288e-05 | D62: 0.03211873166 | E62: 0.006304744734 | F62: 7.901205288e-05 | G62: 0.03187804148 | H62: 0.00554563902 | I62: 2.641022085e-05 | J62: 0.02528129707 | K62: 0.004729460385 | L62: 2.641022085e-05 | M62: 0.02388083507
A63: 57.5 | B63: 0.003871595697 | C63: 3.867969149e-05 | D63: 0.01952614289 | E63: 0.004295798502 | F63: 3.867969149e-05 | G63: 0.0217119076 | H63: 0.003659386626 | I63: 1.147783467e-05 | J63: 0.01667628405 | K63: 0.003004815032 | L63: 1.147783467e-05 | M63: 0.0151694755
A64: 62.5 | B64: 0.002350474215 | C64: 1.893532036e-05 | D64: 0.01185191947 | E64: 0.002925225828 | F64: 1.893532036e-05 | G64: 0.01478057919 | H64: 0.002413259912 | I64: 4.988246385e-06 | J64: 0.01099491625 | K64: 0.00190793246 | L64: 4.988246385e-06 | M64: 0.009630696033
A65: 67.5 | B65: 0.001426133188 | C65: 9.269628155e-06 | D65: 0.007189823964 | E65: 0.001991493612 | F65: 9.269628155e-06 | G65: 0.0100605859 | H65: 0.001591123617 | I65: 2.167882942e-06 | J65: 0.007248093392 | K65: 0.001211189986 | L65: 2.167882942e-06 | M65: 0.006113179798
A66: 72.5 | B66: 0.0008651047632 | C66: 4.537869151e-06 | D66: 0.004360802151 | E66: 0.001355698537 | F66: 4.537869151e-06 | G66: 0.006847695257 | H66: 0.001048982968 | I66: 9.42158043e-07 | J66: 0.004777970839 | K66: 0.0007688227709 | L66: 9.42158043e-07 | M66: 0.003880198145
A67: 77.5 | B67: 0.0005247373903 | C67: 2.221475995e-06 | D67: 0.002644788117 | E67: 0.0009228568656 | F67: 2.221475995e-06 | G67: 0.00466090548 | H67: 0.00069154423 | I67: 4.094601976e-07 | J67: 0.003149673138 | K67: 0.0004880083068 | L67: 4.094601976e-07 | M67: 0.002462840215
A68: 82.5 | B68: 0.0003182748555 | C68: 1.087505045e-06 | D68: 0.001604027516 | E68: 0.000628204133 | F68: 1.087505045e-06 | G68: 0.003172518205 | H68: 0.0004558969733 | I68: 1.779506683e-07 | J68: 0.002076312714 | K68: 0.0003097586286 | L68: 1.779506683e-07 | M68: 0.001563218439
B69: =SUM(B52:B68) -> 0.1767410163 | C69: =SUM(C52:C68) -> 0.1958096858 | D69: =($B$39*C69+(1-$B$39)*B69)*5 -> 0.8932394164 | E69: =SUM(E52:E68) -> 0.1762958068 | F69: =SUM(F52:F68) -> 0.1958096858 | G69: =($B$40*F69+(1-$B$40)*E69)*5 -> 0.8912359735 | H69: =SUM(H52:H68) -> 0.1764055378 | I69: =SUM(I52:I68) -> 0.1943279322 | J69: =($B$37*I69+(1-$B$37)*H69)*5 -> 0.8983207749 | K69: =SUM(K52:K68) -> 0.1765750666 | L69: =SUM(L52:L68) -> 0.1943279322 | M69: =($B$38*L69+(1-$B$38)*K69)*5 -> 0.8917517659

Sheet Em_Family (hidden)
A1: Castro's model as a template
A7: Input Parameters
A8: Number of net migrants | B8: 2000
A9: SRAe | B9: 1
A10: SRAi | B10: 1
A11: Immigrant-Emigrant Ratio | B11: 0
B13: Migration Numbers | D13: Distribution
A14: Age | B14: Male | C14: Female | D14: Male | E14: Female
A15: 2.5 | B15: =IF($B$8<0,$J$39*($J$37*J52-D52)/($J$37-1),$J$39*(J52-$J$37*D52)/(1-$J$37)) -> 61.6581419 | C15: =IF($B$8<0,$J$40*($J$38*M52-G52)/($J$38-1),$J$40*(M52-$J$38*G52)/(1-$J$38)) -> 61.60539433 | D15: =B15/ABS($B$32) -> 0.0616581419 | E15: =C15/ABS($C$32) -> 0.06160539433
A16: =A15+5 -> 7.5 | B16: 26.79651801 | C16: 26.77359401 | D16: 0.02679651801 | E16: 0.02677359401
A17: 12.5 | B17: 20.54223954 | C17: 21.89966733 | D17: 0.02054223954 | E17: 0.02189966733
A18: 17.5 | B18: 104.7408455 | C18: 115.7826188 | D18: 0.1047408455 | E18: 0.1157826188
A19: 22.5 | B19: 188.5232687 | C19: 201.4758411 | D19: 0.1885232687 | E19: 0.2014758411
A20: 27.5 | B20: 181.1833035 | C20: 186.5482011 | D20: 0.1811833035 | E20: 0.1865482011
A21: 32.5 | B21: 137.2260764 | C21: 136.0621372 | D21: 0.1372260764 | E21: 0.1360621372
A22: 37.5 | B22: 95.17501922 | C22: 90.86598307 | D22: 0.09517501922 | E22: 0.09086598307
A23: 42.5 | B23: 63.90955687 | C23: 58.74915282 | D23: 0.06390955687 | E23: 0.05874915282
A24: 47.5 | B24: 42.41068477 | C24: 37.53696708 | D24: 0.04241068477 | E24: 0.03753696708
A25: 52.5 | B25: 28.02344797 | C25: 23.88083507 | D25: 0.02802344797 | E25: 0.02388083507
A26: 57.5 | B26: 18.48842223 | C26: 15.1694755 | D26: 0.01848842223 | E26: 0.0151694755
A27: 62.5 | B27: 12.19113268 | C27: 9.630696033 | D27: 0.01219113268 | E27: 0.009630696033
A28: 67.5 | B28: 8.037294661 | C28: 6.113179798 | D28: 0.008037294661 | E28: 0.006113179798
A29: 72.5 | B29: 5.298488575 | C29: 3.880198145 | D29: 0.005298488575 | E29: 0.003880198145
A30: 77.5 | B30: 3.49292097 | C30: 2.462840215 | D30: 0.00349292097 | E30: 0.002462840215
A31: 82.5 | B31: 2.302638548 | C31: 1.563218439 | D31: 0.002302638548 | E31: 0.001563218439
B32: =SUM(B15:B31) -> 1000 | C32: =SUM(C15:C31) -> 1000 | D32: =SUM(D15:D31) -> 1 | E32: =SUM(E15:E31) -> 1
A34: The section below includes all the calculations for the Castro model. Explanations can be found in Castro's appendix.
A36: Proportion child migrants | C36: Numbers of Migrants | E36: Sex Ratios | G36: Sex-specific migrant No. | I36: Sex-specific M Ratios | K36: K= | L36: =IF(B11=0,0,IF(B8<0,B11,1/B11)) -> 0
A37: Wim | B37: =($B$38/($B$10*(1-$B$38)))/(1+($B$38/($B$10*(1-$B$38)))) -> 0.1 | C37: ET | D37: =IF(B11<>0,IF(B8<0,B8/(L36-1),D38-B8),IF(B8>0,0,D38-B8)) -> 0 | E37: Sre | F37: =B9*(1-$B$40)/(1-$B$39) -> 1 | G37: Ef | H37: =D37/(F37+1) -> 0 | I37: Km | J37: =IF(B8<0,H40/H38,H38/H40) -> 0 | K37: pmue | L37: 20
A38: Wif | B38: 0.1 | C38: IT | D38: =IF(B11<>0,IF(B8<0,B8+D37,B8/(1-1/L36)),IF(B8<0,0,B8/(1-L36))) -> 2000 | E38: Sri | F38: =B10*(1-$B$38)/(1-$B$37) -> 1 | G38: Em | H38: =D37-H37 -> 0 | I38: Kf | J38: =IF(B8<0,H39/H37,H37/H39) -> 0 | K38: plae | L38: 0.2
A39: Wem | B39: =($B$40/($B$9*(1-$B$40)))/(1+($B$40/($B$9*(1-$B$40)))) -> 0.1 | G39: If | H39: =D38/(F38+1) -> 1000 | I39: Nm | J39: =H40-H38 -> 1000 | K39: pmui | L39: 25
A40: Wef | B40: 0.1 | G40: Im | H40: =D38-H39 -> 1000 | I40: Nf | J40: =H39-H37 -> 1000 | K40: plai | L40: 0.2
A42: These are constants for the Castro model. They may be varied if desired.
B43: Net Emigration Country | F43: Net Immigration Country
B44: Emigration | D44: Immigration | F44: Emigration | H44: Immigration
B45: males | C45: females | D45: males | E45: females | F45: males | G45: females | H45: males | I45: females
A46: Mean Child Migration Age | B46: 6 | C46: 6 | D46: 7 | E46: 7 | F46: 7 | G46: 7 | H46: 6 | I46: 6
A47: Mean Adult MigrationAge | B47: 32 | C47: 31 | D47: 35 | E47: 33 | F47: 35 | G47: 33 | H47: 32 | I47: 31
A50: Age | C50: MALES | F50: FEMALES | I50: MALES | L50: FEMALES
B51: ae(x) | C51: ce(x) | D51: e(x) | E51: ae(x) | F51: ce(x) | G51: e(x) | H51: ai(x) | I51: ci(x) | J51: I(x) | K51: ai(x) | L51: ci(x) | M51: I(x)
A52: 2.5 | B52: 0 | C52: =IF($B$8<0,(1/$B$46)*EXP(-A52/$B$46),(1/$F$46)*EXP(-A52/$F$46)) -> 0.09995321963 | D52: =($B$39*C52+(1-$B$39)*B52)*5/$D$69 -> 0.05594984826 | E52: 0 | F52: =IF($B$8<0,(1/$C$46)*EXP(-A52/$C$46),(1/$G$46)*EXP(-A52/$G$46)) -> 0.09995321963 | G52: =($B$40*F52+(1-$B$40)*E52)*5/$G$69 -> 0.05607562003 | H52: 0 | I52: =IF($B$8<0,(1/$D$46)*EXP(-A52/$D$46),(1/$H$46)*EXP(-A52/$H$46)) -> 0.1098734384 | J52: =($B$37*I52+(1-$B$37)*H52)*5/$J$69 -> 0.0616581419 | K52: 0 | L52: =IF($B$8<0,(1/$E$46)*EXP(-A52/$E$46),(1/$I$46)*EXP(-A52/$I$46)) -> 0.1098734384 | M52: =($B$38*L52+(1-$B$38)*K52)*5/$M$69 -> 0.06160539433
A53: =A52+5 -> 7.5 | B53: 0 | C53: 0.04893126501 | D53: 0.02738978157 | E53: 0 | F53: 0.04893126501 | G53: 0.02745135209 | H53: 0 | I53: 0.04775079948 | J53: 0.02679651801 | K53: 0 | L53: 0.04775079948 | M53: 0.02677359401
A54: 12.5 | B54: =IF($B$8<0,(1/($B$47-$L$37))*EXP((-1*((A54-$L$37)/($B$47-$L$37)))-EXP(-$L$38*(A54-$L$37))),(1/($F$47-$L$39))*EXP((-1*((A54-$L$39)/($F$47-$L$39)))-EXP(-$L$40*(A54-$L$39)))) -> 1.78680928e-06 | C54: 0.02395389268 | D54: 0.01341744079 | E54: =IF($B$8<0,(1/($C$47-$L$37))*EXP((-1*((A54-$L$37)/($C$47-$L$37)))-EXP(-$L$38*(A54-$L$37))),(1/($G$47-$L$37))*EXP((-1*((A54-$L$37)/($G$47-$L$37)))-EXP(-$L$38*(A54-$L$37)))) -> 0.001549666781 | F54: 0.02395389268 | G54: 0.02126310811 | H54: =IF($B$8<0,(1/($D$47-$L$39))*EXP((-1*((A54-$L$39)/($D$47-$L$39)))-EXP(-$L$40*(A54-$L$39))),(1/($H$47-$L$37))*EXP((-1*((A54-$L$37)/($H$47-$L$37)))-EXP(-$L$40*(A54-$L$37)))) -> 0.001761489149 | I54: 0.02075241191 | J54: 0.02054223954 | K54: =IF($B$8<0,(1/($E$47-$L$39))*EXP((-1*((A54-$L$39)/($E$47-$L$39)))-EXP(-$L$40*(A54-$L$39))),(1/($I$47-$L$37))*EXP((-1*((A54-$L$37)/($I$47-$L$37)))-EXP(-$L$40*(A54-$L$37)))) -> 0.002033969124 | L54: 0.02075241191 | M54: 0.02189966733
A55: 17.5 | B55: 0.002395234446 | C55: 0.01172642837 | D55: 0.01863080478 | E55: 0.01792851287 | F55: 0.01172642837 | G55: 0.09710281526 | H55: 0.01973632195 | I55: 0.009018961037 | J55: 0.1047408455 | K55: 0.02194219428 | L55: 0.009018961037 | M55: 0.1157826188
A56: 22.5 | B56: 0.02469124964 | C56: 0.005740575207 | D56: 0.1276039871 | E56: 0.03460394073 | F56: 0.005740575207 | G56: 0.1779416738 | H56: 0.03689162779 | I56: 0.003919624309 | J56: 0.1885232687 | K56: 0.03949036109 | L56: 0.003919624309 | M56: 0.2014758411
A57: 27.5 | B57: 0.04246327252 | C57: 0.002810250714 | D57: 0.2154963699 | E57: 0.03456192645 | F57: 0.002810250714 | G57: 0.17608557 | H57: 0.03568457309 | I57: 0.001703461703 | J57: 0.1811833035 | K57: 0.03677843486 | L57: 0.001703461703 | M57: 0.1865482011
A58: 32.5 | B58: 0.03778983027 | C58: 0.001375734798 | D58: 0.1911493161 | E58: 0.02709048235 | F58: 0.001375734798 | G58: 0.1375562046 | H58: 0.02708816628 | I58: 0.0007403214043 | J58: 0.1372260764 | K58: 0.02688077565 | L58: 0.0007403214043 | M58: 0.1360621372
A59: 37.5 | B59: 0.0263926401 | C59: 0.0006734794962 | D59: 0.133338966 | E59: 0.01942293709 | F59: 0.0006734794962 | G59: 0.09844750354 | H59: 0.0188086696 | I59: 0.000321742356 | J59: 0.09517501922 | K59: 0.01797089549 | L59: 0.000321742356 | M59: 0.09086598307
A60: 42.5 | B60: 0.01686048642 | C60: 0.0003296962703 | D60: 0.08512503548 | E60: 0.01347623406 | F60: 0.0003296962703 | G60: 0.06822873315 | H60: 0.0126383979 | I60: 0.0001398286515 | J60: 0.06390955687 | K60: 0.01162661032 | L60: 0.0001398286515 | M60: 0.05874915282
A61: 47.5 | B61: 0.01042348246 | C61: 0.0001614000593 | D61: 0.05260221417 | E61: 0.009238084276 | F61: 0.0001614000593 | G61: 0.04673518631 | H61: 0.008390458699 | I61: 6.076928146e-05 | J61: 0.04241068477 | K61: 0.007431838231 | L61: 6.076928146e-05 | M61: 0.03753696708
A62: 52.5 | B62: 0.006366713577 | C62: 7.901205288e-05 | D62: 0.03211873166 | E62: 0.006304744734 | F62: 7.901205288e-05 | G62: 0.03187804148 | H62: 0.00554563902 | I62: 2.641022085e-05 | J62: 0.02802344797 | K62: 0.004729460385 | L62: 2.641022085e-05 | M62: 0.02388083507
A63: 57.5 | B63: 0.003871595697 | C63: 3.867969149e-05 | D63: 0.01952614289 | E63: 0.004295798502 | F63: 3.867969149e-05 | G63: 0.0217119076 | H63: 0.003659386626 | I63: 1.147783467e-05 | J63: 0.01848842223 | K63: 0.003004815032 | L63: 1.147783467e-05 | M63: 0.0151694755
A64: 62.5 | B64: 0.002350474215 | C64: 1.893532036e-05 | D64: 0.01185191947 | E64: 0.002925225828 | F64: 1.893532036e-05 | G64: 0.01478057919 | H64: 0.002413259912 | I64: 4.988246385e-06 | J64: 0.01219113268 | K64: 0.00190793246 | L64: 4.988246385e-06 | M64: 0.009630696033
A65: 67.5 | B65: 0.001426133188 | C65: 9.269628155e-06 | D65: 0.007189823964 | E65: 0.001991493612 | F65: 9.269628155e-06 | G65: 0.0100605859 | H65: 0.001591123617 | I65: 2.167882942e-06 | J65: 0.008037294661 | K65: 0.001211189986 | L65: 2.167882942e-06 | M65: 0.006113179798
A66: 72.5 | B66: 0.0008651047632 | C66: 4.537869151e-06 | D66: 0.004360802151 | E66: 0.001355698537 | F66: 4.537869151e-06 | G66: 0.006847695257 | H66: 0.001048982968 | I66: 9.42158043e-07 | J66: 0.005298488575 | K66: 0.0007688227709 | L66: 9.42158043e-07 | M66: 0.003880198145
A67: 77.5 | B67: 0.0005247373903 | C67: 2.221475995e-06 | D67: 0.002644788117 | E67: 0.0009228568656 | F67: 2.221475995e-06 | G67: 0.00466090548 | H67: 0.00069154423 | I67: 4.094601976e-07 | J67: 0.00349292097 | K67: 0.0004880083068 | L67: 4.094601976e-07 | M67: 0.002462840215
A68: 82.5 | B68: 0.0003182748555 | C68: 1.087505045e-06 | D68: 0.001604027516 | E68: 0.000628204133 | F68: 1.087505045e-06 | G68: 0.003172518205 | H68: 0.0004558969733 | I68: 1.779506683e-07 | J68: 0.002302638548 | K68: 0.0003097586286 | L68: 1.779506683e-07 | M68: 0.001563218439
B69: =SUM(B52:B68) -> 0.1767410163 | C69: =SUM(C52:C68) -> 0.1958096858 | D69: =($B$39*C69+(1-$B$39)*B69)*5 -> 0.8932394164 | E69: =SUM(E52:E68) -> 0.1762958068 | F69: =SUM(F52:F68) -> 0.1958096858 | G69: =($B$40*F69+(1-$B$40)*E69)*5 -> 0.8912359735 | H69: =SUM(H52:H68) -> 0.1764055378 | I69: =SUM(I52:I68) -> 0.1943279322 | J69: =($B$37*I69+(1-$B$37)*H69)*5 -> 0.8909888863 | K69: =SUM(K52:K68) -> 0.1765750666 | L69: =SUM(L52:L68) -> 0.1943279322 | M69: =($B$38*L69+(1-$B$38)*K69)*5 -> 0.8917517659

Sheet Em_MLabor (hidden)
A1: Castro's model as a template
A7: Input Parameters
A8: Number of net migrants | B8: -2000
A9: SRAe | B9: 2
A10: SRAi | B10: 1
A11: Immigrant-Emigrant Ratio | B11: 0
B13: Migration Numbers | D13: Distribution
A14: Age | B14: Male | C14: Female | D14: Male | E14: Female
A15: 2.5 | B15: =IF($B$8<0,$J$39*($J$37*J52-D52)/($J$37-1),$J$39*(J52-$J$37*D52)/(1-$J$37)) -> -42.72641021 | C15: =IF($B$8<0,$J$40*($J$38*M52-G52)/($J$38-1),$J$40*(M52-$J$38*G52)/(1-$J$38)) -> -42.48647885 | D15: =B15/ABS($B$32) -> -0.03260699727 | E15: =C15/ABS($C$32) -> -0.06160539433
A16: =A15+5 -> 7.5 | B16: -18.56882134 | C16: -18.46454759 | D16: -0.0141709426 | E16: -0.02677359401
A17: 12.5 | B17: -20.39978034 | C17: -15.10321885 | D17: -0.01556825342 | E17: -0.02189966733
A18: 17.5 | B18: -141.6545021 | C18: -79.85008194 | D18: -0.1081047516 | E18: -0.1157826188
A19: 22.5 | B19: -259.7526272 | C19: -138.9488559 | D19: -0.1982322682 | E19: -0.2014758411
A20: 27.5 | B20: -250.4418717 | C20: -128.6539318 | D20: -0.1911266915 | E20: -0.1865482011
A21: 32.5 | B21: -189.8955149 | C21: -93.83595669 | D21: -0.1449202614 | E21: -0.1360621372
A22: 37.5 | B22: -131.7791807 | C22: -62.66619522 | D22: -0.1005683221 | E22: -0.09086598307
A23: 42.5 | B23: -88.51871063 | C23: -40.51665712 | D23: -0.06755375285 | E23: -0.05874915282
A24: 47.5 | B24: -58.75388805 | C24: -25.8875635 | D24: -0.04483849351 | E24: -0.03753696708
A25: 52.5 | B25: -38.82779073 | C25: -16.46954143 | D25: -0.02963173503 | E25: -0.02388083507
A26: 57.5 | B26: -25.61888135 | C26: -10.46170724 | D26: -0.01955125155 | E26: -0.0151694755
A27: 62.5 | B27: -16.89390949 | C27: -6.641859333 | D27: -0.0128927204 | E27: -0.009630696033
A28: 67.5 | B28: -11.13814813 | C28: -4.215986068 | D28: -0.00850016568 | E28: -0.006113179798
A29: 72.5 | B29: -7.342877821 | C29: -2.675998721 | D29: -0.005603775179 | E29: -0.003880198145
A30: 77.5 | B30: -4.840725354 | C30: -1.698510493 | D30: -0.003694237771 | E30: -0.002462840215
A31: 82.5 | B31: -3.191187498 | C31: -1.078081682 | D31: -0.002435379933 | E31: -0.001563218439
B32: =SUM(B15:B31) -> -1310.344828 | C32: =SUM(C15:C31) -> -689.6551724 | D32: =SUM(D15:D31) -> -1 | E32: =SUM(E15:E31) -> -1
A34: The section below includes all the calculations for the Castro model. Explanations can be found in Castro's appendix.
A36: Proportion child migrants | C36: Numbers of Migrants | E36: Sex Ratios | G36: Sex-specific migrant No. | I36: Sex-specific M Ratios | K36: K= | L36: =IF(B11=0,0,IF(B8<0,B11,1/B11)) -> 0
A37: Wim | B37: =($B$38/($B$10*(1-$B$38)))/(1+($B$38/($B$10*(1-$B$38)))) -> 0.1 | C37: ET | D37: =IF(B11<>0,IF(B8<0,B8/(L36-1),D38-B8),IF(B8>0,0,D38-B8)) -> 2000 | E37: Sre | F37: =B9*(1-$B$40)/(1-$B$39) -> 1.9 | G37: Ef | H37: =D37/(F37+1) -> 689.6551724 | I37: Km | J37: =IF(B8<0,H40/H38,H38/H40) -> 0 | K37: pmue | L37: 20
A38: Wif | B38: 0.1 | C38: IT | D38: =IF(B11<>0,IF(B8<0,B8+D37,B8/(1-1/L36)),IF(B8<0,0,B8/(1-L36))) -> 0 | E38: Sri | F38: =B10*(1-$B$38)/(1-$B$37) -> 1 | G38: Em | H38: =D37-H37 -> 1310.344828 | I38: Kf | J38: =IF(B8<0,H39/H37,H37/H39) -> 0 | K38: plae | L38: 0.2
A39: Wem | B39: =($B$40/($B$9*(1-$B$40)))/(1+($B$40/($B$9*(1-$B$40)))) -> 0.05263157895 | G39: If | H39: =D38/(F38+1) -> 0 | I39: Nm | J39: =H40-H38 -> -1310.344828 | K39: pmui | L39: 25
A40: Wef | B40: 0.1 | G40: Im | H40: =D38-H39 -> 0 | I40: Nf | J40: =H39-H37 -> -689.6551724 | K40: plai | L40: 0.2
A42: These are constants for the Castro model. They may be varied if desired.
B43: Net Emigration Country | F43: Net Immigration Country
B44: Emigration | D44: Immigration | F44: Emigration | H44: Immigration
B45: males | C45: females | D45: males | E45: females | F45: males | G45: females | H45: males | I45: females
A46: Mean Child Migration Age | B46: 6 | C46: 6 | D46: 7 | E46: 7 | F46: 7 | G46: 7 | H46: 6 | I46: 6
A47: Mean Adult MigrationAge | B47: 32 | C47: 31 | D47: 35 | E47: 33 | F47: 35 | G47: 33 | H47: 32 | I47: 31
A50: Age | C50: MALES | F50: FEMALES | I50: MALES | L50: FEMALES
B51: ae(x) | C51: ce(x) | D51: e(x) | E51: ae(x) | F51: ce(x) | G51: e(x) | H51: ai(x) | I51: ci(x) | J51: I(x) | K51: ai(x) | L51: ci(x) | M51: I(x)
A52: 2.5 | B52: 0 | C52: =IF($B$8<0,(1/$B$46)*EXP(-A52/$B$46),(1/$F$46)*EXP(-A52/$F$46)) -> 0.1098734384 | D52: =($B$39*C52+(1-$B$39)*B52)*5/$D$69 -> 0.03260699727 | E52: 0 | F52: =IF($B$8<0,(1/$C$46)*EXP(-A52/$C$46),(1/$G$46)*EXP(-A52/$G$46)) -> 0.1098734384 | G52: =($B$40*F52+(1-$B$40)*E52)*5/$G$69 -> 0.06160539433 | H52: 0 | I52: =IF($B$8<0,(1/$D$46)*EXP(-A52/$D$46),(1/$H$46)*EXP(-A52/$H$46)) -> 0.09995321963 | J52: =($B$37*I52+(1-$B$37)*H52)*5/$J$69 -> 0.05594984826 | K52: 0 | L52: =IF($B$8<0,(1/$E$46)*EXP(-A52/$E$46),(1/$I$46)*EXP(-A52/$I$46)) -> 0.09995321963 | M52: =($B$38*L52+(1-$B$38)*K52)*5/$M$69 -> 0.05527124501
A53: =A52+5 -> 7.5 | B53: 0 | C53: 0.04775079948 | D53: 0.0141709426 | E53: 0 | F53: 0.04775079948 | G53: 0.02677359401 | H53: 0 | I53: 0.04893126501 | J53: 0.02738978157 | K53: 0 | L53: 0.04893126501 | M53: 0.02705757701
A54: 12.5 | B54: =IF($B$8<0,(1/($B$47-$L$37))*EXP((-1*((A54-$L$37)/($B$47-$L$37)))-EXP(-$L$38*(A54-$L$37))),(1/($F$47-$L$39))*EXP((-1*((A54-$L$39)/($F$47-$L$39)))-EXP(-$L$40*(A54-$L$39)))) -> 0.001761489149 | C54: 0.02075241191 | D54: 0.01556825342 | E54: =IF($B$8<0,(1/($C$47-$L$37))*EXP((-1*((A54-$L$37)/($C$47-$L$37)))-EXP(-$L$38*(A54-$L$37))),(1/($G$47-$L$37))*EXP((-1*((A54-$L$37)/($G$47-$L$37)))-EXP(-$L$38*(A54-$L$37)))) -> 0.002033969124 | F54: 0.02075241191 | G54: 0.02189966733 | H54: =IF($B$8<0,(1/($D$47-$L$39))*EXP((-1*((A54-$L$39)/($D$47-$L$39)))-EXP(-$L$40*(A54-$L$39))),(1/($H$47-$L$37))*EXP((-1*((A54-$L$37)/($H$47-$L$37)))-EXP(-$L$40*(A54-$L$37)))) -> 1.78680928e-06 | I54: 0.02395389268 | J54: 0.01341744079 | K54: =IF($B$8<0,(1/($E$47-$L$39))*EXP((-1*((A54-$L$39)/($E$47-$L$39)))-EXP(-$L$40*(A54-$L$39))),(1/($I$47-$L$37))*EXP((-1*((A54-$L$37)/($I$47-$L$37)))-EXP(-$L$40*(A54-$L$37)))) -> 3.052848397e-06 | L54: 0.02395389268 | M54: 0.01326100439
A55: 17.5 | B55: 0.01973632195 | C55: 0.009018961037 | D55: 0.1081047516 | E55: 0.02194219428 | F55: 0.009018961037 | G55: 0.1157826188 | H55: 0.002395234446 | I55: 0.01172642837 | J55: 0.01863080478 | K55: 0.003611505303 | L55: 0.01172642837 | M55: 0.02445789996
A56: 22.5 | B56: 0.03689162779 | C56: 0.003919624309 | D56: 0.1982322682 | E56: 0.03949036109 | F56: 0.003919624309 | G56: 0.2014758411 | H56: 0.02469124964 | I56: 0.005740575207 | J56: 0.1276039871 | K56: 0.03285462303 | L56: 0.005740575207 | M56: 0.1666832952
A57: 27.5 | B57: 0.03568457309 | C57: 0.001703461703 | D57: 0.1911266915 | E57: 0.03677843486 | F57: 0.001703461703 | G57: 0.1865482011 | H57: 0.04246327252 | I57: 0.002810250714 | J57: 0.2154963699 | K57: 0.04986319112 | L57: 0.002810250714 | M57: 0.2497101347
A58: 32.5 | B58: 0.02708816628 | C58: 0.0007403214043 | D58: 0.1449202614 | E58: 0.02688077565 | F58: 0.0007403214043 | G58: 0.1360621372 | H58: 0.03778983027 | I58: 0.001375734798 | J58: 0.1911493161 | K58: 0.03916108708 | L58: 0.001375734798 | M58: 0.1956552975
A59: 37.5 | B59: 0.0188086696 | C59: 0.000321742356 | D59: 0.1005683221 | E59: 0.01797089549 | F59: 0.000321742356 | G59: 0.09086598307 | H59: 0.0263926401 | I59: 0.0006734794962 | J59: 0.133338966 | K59: 0.02413658499 | L59: 0.0006734794962 | M59: 0.1204939272
A60: 42.5 | B60: 0.0126383979 | C60: 0.0001398286515 | D60: 0.06755375285 | E60: 0.01162661032 | F60: 0.0001398286515 | G60: 0.05874915282 | H60: 0.01686048642 | I60: 0.0003296962703 | J60: 0.08512503548 | K60: 0.01360743526 | L60: 0.0003296962703 | M60: 0.06790298246
A61: 47.5 | B61: 0.008390458699 | C61: 6.076928146e-05 | D61: 0.04483849351 | E61: 0.007431838231 | F61: 6.076928146e-05 | G61: 0.03753696708 | H61: 0.01042348246 | I61: 0.0001614000593 | J61: 0.05260221417 | K61: 0.007423901598 | L61: 0.0001614000593 | M61: 0.03703607901
A62: 52.5 | B62: 0.00554563902 | C62: 2.641022085e-05 | D62: 0.02963173503 | E62: 0.004729460385 | F62: 2.641022085e-05 | G62: 0.02388083507 | H62: 0.006366713577 | I62: 7.901205288e-05 | J62: 0.03211873166 | K62: 0.004001730793 | L62: 7.901205288e-05 | M62: 0.01995926585
A63: 57.5 | B63: 0.003659386626 | C63: 1.147783467e-05 | D63: 0.01955125155 | E63: 0.003004815032 | F63: 1.147783467e-05 | G63: 0.0151694755 | H63: 0.003871595697 | I63: 3.867969149e-05 | J63: 0.01952614289 | K63: 0.00214751272 | L63: 3.867969149e-05 | M63: 0.01070900161
A64: 62.5 | B64: 0.002413259912 | C64: 4.988246385e-06 | D64: 0.0128927204 | E64: 0.00190793246 | F64: 4.988246385e-06 | G64: 0.009630696033 | H64: 0.002350474215 | I64: 1.893532036e-05 | J64: 0.01185191947 | K64: 0.00115057366 | L64: 1.893532036e-05 | M64: 0.00573657686
A65: 67.5 | B65: 0.001591123617 | C65: 2.167882942e-06 | D65: 0.00850016568 | E65: 0.001211189986 | F65: 2.167882942e-06 | G65: 0.006113179798 | H65: 0.001426133188 | I65: 9.269628155e-06 | J65: 0.007189823964 | K65: 0.0006160730523 | L65: 9.269628155e-06 | M65: 0.003071161355
A66: 72.5 | B66: 0.001048982968 | C66: 9.42158043e-07 | D66: 0.005603775179 | E66: 0.0007688227709 | F66: 9.42158043e-07 | G66: 0.003880198145 | H66: 0.0008651047632 | I66: 4.537869151e-06 | J66: 0.004360802151 | K66: 0.0003298025574 | L66: 4.537869151e-06 | M66: 0.001643850952
A67: 77.5 | B67: 0.00069154423 | C67: 4.094601976e-07 | D67: 0.003694237771 | E67: 0.0004880083068 | F67: 4.094601976e-07 | G67: 0.002462840215 | H67: 0.0005247373903 | I67: 2.221475995e-06 | J67: 0.002644788117 | K67: 0.0001765389408 | L67: 2.221475995e-06 | M67: 0.0008798168537
A68: 82.5 | B68: 0.0004558969733 | C68: 1.779506683e-07 | D68: 0.002435379933 | E68: 0.0003097586286 | F68: 1.779506683e-07 | G68: 0.001563218439 | H68: 0.0003182748555 | I68: 1.087505045e-06 | J68: 0.001604027516 | K68: 9.449613046e-05 | L68: 1.087505045e-06 | M68: 0.000470884049
B69: =SUM(B52:B68) -> 0.1764055378 | C69: =SUM(C52:C68) -> 0.1943279322 | D69: =($B$39*C69+(1-$B$39)*B69)*5 -> 0.8867441086 | E69: =SUM(E52:E68) -> 0.1765750666 | F69: =SUM(F52:F68) -> 0.1943279322 | G69: =($B$40*F69+(1-$B$40)*E69)*5 -> 0.8917517659 | H69: =SUM(H52:H68) -> 0.1767410163 | I69: =SUM(I52:I68) -> 0.1958096858 | J69: =($B$37*I69+(1-$B$37)*H69)*5 -> 0.8932394164 | K69: =SUM(K52:K68) -> 0.1791781091 | L69: =SUM(L52:L68) -> 0.1958096858 | M69: =($B$38*L69+(1-$B$38)*K69)*5 -> 0.9042063338

Sheet Em_FLabor (hidden)
A1: Castro's model as a template
A7: Input Parameters
A8: Number of net migrants | B8: -2000
A9: SRAe | B9: 0.5
A10: SRAi | B10: 1
A11: Immigrant-Emigrant Ratio | B11: 0
B13: Migration Numbers | D13: Distribution
A14: Age | B14: Male | C14: Female | D14: Male | E14: Female
A15: 2.5 | B15: =IF($B$8<0,$J$39*($J$37*J52-D52)/($J$37-1),$J$39*(J52-$J$37*D52)/(1-$J$37)) -> -78.9095513 | C15: =IF($B$8<0,$J$40*($J$38*M52-G52)/($J$38-1),$J$40*(M52-$J$38*G52)/(1-$J$38)) -> -79.49083139 | D15: =B15/ABS($B$32) -> -0.1111907314 | E15: =C15/ABS($C$32) -> -0.06160539433
A16: =A15+5 -> 7.5 | B16: -34.29394963 | C16: -34.54657292 | D16: -0.04832329266 | E16: -0.02677359401
A17: 12.5 | B17: -20.59693388 | C17: -28.25763526 | D17: -0.02902295228 | E17: -0.02189966733
A18: 17.5 | B18: -70.26185468 | C18: -149.3969275 | D18: -0.09900534069 | E18: -0.1157826188
A19: 22.5 | B19: -122.0427255 | C19: -259.9688272 | D19: -0.171969295 | E19: -0.2014758411
A20: 27.5 | B20: -116.5501054 | C20: -240.7073562 | D20: -0.164229694 | E20: -0.1865482011
A21: 32.5 | B21: -88.07621099 | C21: -175.564048 | D21: -0.1241073882 | E21: -0.1360621372
A22: 37.5 | B22: -61.01761443 | C22: -117.2464298 | D22: -0.08597936579 | E22: -0.09086598307
A23: 42.5 | B23: -40.94565773 | C23: -75.80535848 | D23: -0.05769615408 | E23: -0.05874915282
A24: 47.5 | B24: -27.16023373 | C24: -48.43479623 | D24: -0.03827123844 | E24: -0.03753696708
A25: 52.5 | B25: -17.94156566 | C25: -30.81398073 | D25: -0.02528129707 | E25: -0.02388083507
A26: 57.5 | B26: -11.83478223 | C26: -19.57351677 | D26: -0.01667628405 | E26: -0.0151694755
A27: 62.5 | B27: -7.802843788 | C27: -12.42670456 | D27: -0.01099491625 | E27: -0.009630696033
A28: 67.5 | B28: -5.143808214 | C28: -7.887973933 | D28: -0.007248093392 | E28: -0.006113179798
A29: 72.5 | B29: -3.390818015 | C29: -5.006707284 | D29: -0.004777970839 | E29: -0.003880198145
A30: 77.5 | B30: -2.235251904 | C30: -3.177858342 | D30: -0.003149673138 | E30: -0.002462840215
A31: 82.5 | B31: -1.473512248 | C31: -2.017056051 | D31: -0.002076312714 | E31: -0.001563218439
B32: =SUM(B15:B31) -> -709.6774194 | C32: =SUM(C15:C31) -> -1290.322581 | D32: =SUM(D15:D31) -> -1 | E32: =SUM(E15:E31) -> -1
A34: The section below includes all the calculations for the Castro model. Explanations can be found in Castro's appendix.
A36: Proportion child migrants | C36: Numbers of Migrants | E36: Sex Ratios | G36: Sex-specific migrant No. | I36: Sex-specific M Ratios | K36: K= | L36: =IF(B11=0,0,IF(B8<0,B11,1/B11)) -> 0
A37: Wim | B37: =($B$38/($B$10*(1-$B$38)))/(1+($B$38/($B$10*(1-$B$38)))) -> 0.1 | C37: ET | D37: =IF(B11<>0,IF(B8<0,B8/(L36-1),D38-B8),IF(B8>0,0,D38-B8)) -> 2000 | E37: Sre | F37: =B9*(1-$B$40)/(1-$B$39) -> 0.55 | G37: Ef | H37: =D37/(F37+1) -> 1290.322581 | I37: Km | J37: =IF(B8<0,H40/H38,H38/H40) -> 0 | K37: pmue | L37: 20
A38: Wif | B38: 0.1 | C38: IT | D38: =IF(B11<>0,IF(B8<0,B8+D37,B8/(1-1/L36)),IF(B8<0,0,B8/(1-L36))) -> 0 | E38: Sri | F38: =B10*(1-$B$38)/(1-$B$37) -> 1 | G38: Em | H38: =D37-H37 -> 709.6774194 | I38: Kf | J38: =IF(B8<0,H39/H37,H37/H39) -> 0 | K38: plae | L38: 0.2
A39: Wem | B39: =($B$40/($B$9*(1-$B$40)))/(1+($B$40/($B$9*(1-$B$40)))) -> 0.1818181818 | G39: If | H39: =D38/(F38+1) -> 0 | I39: Nm | J39: =H40-H38 -> -709.6774194 | K39: pmui | L39: 25
A40: Wef | B40: 0.1 | G40: Im | H40: =D38-H39 -> 0 | I40: Nf | J40: =H39-H37 -> -1290.322581 | K40: plai | L40: 0.2
A42: These are constants for the Castro model. They may be varied if desired.
B43: Net Emigration Country | F43: Net Immigration Country
B44: Emigration | D44: Immigration | F44: Emigration | H44: Immigration
B45: males | C45: females | D45: males | E45: females | F45: males | G45: females | H45: males | I45: females
A46: Mean Child Migration Age | B46: 6 | C46: 6 | D46: 7 | E46: 7 | F46: 7 | G46: 7 | H46: 6 | I46: 6
A47: Mean Adult MigrationAge | B47: 32 | C47: 31 | D47: 35 | E47: 33 | F47: 35 | G47: 33 | H47: 32 | I47: 31
A50: Age | C50: MALES | F50: FEMALES | I50: MALES | L50: FEMALES
B51: ae(x) | C51: ce(x) | D51: e(x) | E51: ae(x) | F51: ce(x) | G51: e(x) | H51: ai(x) | I51: ci(x) | J51: I(x) | K51: ai(x) | L51: ci(x) | M51: I(x)
A52: 2.5 | B52: 0 | C52: =IF($B$8<0,(1/$B$46)*EXP(-A52/$B$46),(1/$F$46)*EXP(-A52/$F$46)) -> 0.1098734384 | D52: =($B$39*C52+(1-$B$39)*B52)*5/$D$69 -> 0.1111907314 | E52: 0 | F52: =IF($B$8<0,(1/$C$46)*EXP(-A52/$C$46),(1/$G$46)*EXP(-A52/$G$46)) -> 0.1098734384 | G52: =($B$40*F52+(1-$B$40)*E52)*5/$G$69 -> 0.06160539433 | H52: 0 | I52: =IF($B$8<0,(1/$D$46)*EXP(-A52/$D$46),(1/$H$46)*EXP(-A52/$H$46)) -> 0.09995321963 | J52: =($B$37*I52+(1-$B$37)*H52)*5/$J$69 -> 0.05594984826 | K52: 0 | L52: =IF($B$8<0,(1/$E$46)*EXP(-A52/$E$46),(1/$I$46)*EXP(-A52/$I$46)) -> 0.09995321963 | M52: =($B$38*L52+(1-$B$38)*K52)*5/$M$69 -> 0.05527124501
A53: =A52+5 -> 7.5 | B53: 0 | C53: 0.04775079948 | D53: 0.04832329266 | E53: 0 | F53: 0.04775079948 | G53: 0.02677359401 | H53: 0 | I53: 0.04893126501 | J53: 0.02738978157 | K53: 0 | L53: 0.04893126501 | M53: 0.02705757701
A54: 12.5 | B54: =IF($B$8<0,(1/($B$47-$L$37))*EXP((-1*((A54-$L$37)/($B$47-$L$37)))-EXP(-$L$38*(A54-$L$37))),(1/($F$47-$L$39))*EXP((-1*((A54-$L$39)/($F$47-$L$39)))-EXP(-$L$40*(A54-$L$39)))) -> 0.001761489149 | C54: 0.02075241191 | D54: 0.02902295228 | E54: =IF($B$8<0,(1/($C$47-$L$37))*EXP((-1*((A54-$L$37)/($C$47-$L$37)))-EXP(-$L$38*(A54-$L$37))),(1/($G$47-$L$37))*EXP((-1*((A54-$L$37)/($G$47-$L$37)))-EXP(-$L$38*(A54-$L$37)))) -> 0.002033969124 | F54: 0.02075241191 | G54: 0.02189966733 | H54: =IF($B$8<0,(1/($D$47-$L$39))*EXP((-1*((A54-$L$39)/($D$47-$L$39)))-EXP(-$L$40*(A54-$L$39))),(1/($H$47-$L$37))*EXP((-1*((A54-$L$37)/($H$47-$L$37)))-EXP(-$L$40*(A54-$L$37)))) -> 1.78680928e-06 | I54: 0.02395389268 | J54: 0.01341744079 | K54: =IF($B$8<0,(1/($E$47-$L$39))*EXP((-1*((A54-$L$39)/($E$47-$L$39)))-EXP(-$L$40*(A54-$L$39))),(1/($I$47-$L$37))*EXP((-1*((A54-$L$37)/($I$47-$L$37)))-EXP(-$L$40*(A54-$L$37)))) -> 3.052848397e-06 | L54: 0.02395389268 | M54: 0.01326100439
A55: 17.5 | B55: 0.01973632195 | C55: 0.009018961037 | D55: 0.09900534069 | E55: 0.02194219428 | F55: 0.009018961037 | G55: 0.1157826188 | H55: 0.002395234446 | I55: 0.01172642837 | J55: 0.01863080478 | K55: 0.003611505303 | L55: 0.01172642837 | M55: 0.02445789996
A56: 22.5 | B56: 0.03689162779 | C56: 0.003919624309 | D56: 0.171969295 | E56: 0.03949036109 | F56: 0.003919624309 | G56: 0.2014758411 | H56: 0.02469124964 | I56: 0.005740575207 | J56: 0.1276039871 | K56: 0.03285462303 | L56: 0.005740575207 | M56: 0.1666832952
A57: 27.5 | B57: 0.03568457309 | C57: 0.001703461703 | D57: 0.164229694 | E57: 0.03677843486 | F57: 0.001703461703 | G57: 0.1865482011 | H57: 0.04246327252 | I57: 0.002810250714 | J57: 0.2154963699 | K57: 0.04986319112 | L57: 0.002810250714 | M57: 0.2497101347
A58: 32.5 | B58: 0.02708816628 | C58: 0.0007403214043 | D58: 0.1241073882 | E58: 0.02688077565 | F58: 0.0007403214043 | G58: 0.1360621372 | H58: 0.03778983027 | I58: 0.001375734798 | J58: 0.1911493161 | K58: 0.03916108708 | L58: 0.001375734798 | M58: 0.1956552975
A59: 37.5 | B59: 0.0188086696 | C59: 0.000321742356 | D59: 0.08597936579 | E59: 0.01797089549 | F59: 0.000321742356 | G59: 0.09086598307 | H59: 0.0263926401 | I59: 0.0006734794962 | J59: 0.133338966 | K59: 0.02413658499 | L59: 0.0006734794962 | M59: 0.1204939272
A60: 42.5 | B60: 0.0126383979 | C60: 0.0001398286515 | D60: 0.05769615408 | E60: 0.01162661032 | F60: 0.0001398286515 | G60: 0.05874915282 | H60: 0.01686048642 | I60: 0.0003296962703 | J60: 0.08512503548 | K60: 0.01360743526 | L60: 0.0003296962703 | M60: 0.06790298246
A61: 47.5 | B61: 0.008390458699 | C61: 6.076928146e-05 | D61: 0.03827123844 | E61: 0.007431838231 | F61: 6.076928146e-05 | G61: 0.03753696708 | H61: 0.01042348246 | I61: 0.0001614000593 | J61: 0.05260221417 | K61: 0.007423901598 | L61: 0.0001614000593 | M61: 0.03703607901
A62: 52.5 | B62: 0.00554563902 | C62: 2.641022085e-05 | D62: 0.02528129707 | E62: 0.004729460385 | F62: 2.641022085e-05 | G62: 0.02388083507 | H62: 0.006366713577 | I62: 7.901205288e-05 | J62: 0.03211873166 | K62: 0.004001730793 | L62: 7.901205288e-05 | M62: 0.01995926585
A63: 57.5 | B63: 0.003659386626 | C63: 1.147783467e-05 | D63: 0.01667628405 | E63: 0.003004815032 | F63: 1.147783467e-05 | G63: 0.0151694755 | H63: 0.003871595697 | I63: 3.867969149e-05 | J63: 0.01952614289 | K63: 0.00214751272 | L63: 3.867969149e-05 | M63: 0.01070900161
A64: 62.5 | B64: 0.002413259912 | C64: 4.988246385e-06 | D64: 0.01099491625 | E64: 0.00190793246 | F64: 4.988246385e-06 | G64: 0.009630696033 | H64: 0.002350474215 | I64: 1.893532036e-05 | J64: 0.01185191947 | K64: 0.00115057366 | L64: 1.893532036e-05 | M64: 0.00573657686
A65: 67.5 | B65: 0.001591123617 | C65: 2.167882942e-06 | D65: 0.007248093392 | E65: 0.001211189986 | F65: 2.167882942e-06 | G65: 0.006113179798 | H65: 0.001426133188 | I65: 9.269628155e-06 | J65: 0.007189823964 | K65: 0.0006160730523 | L65: 9.269628155e-06 | M65: 0.003071161355
A66: 72.5 | B66: 0.001048982968 | C66: 9.42158043e-07 | D66: 0.004777970839 | E66: 0.0007688227709 | F66: 9.42158043e-07 | G66: 0.003880198145 | H66: 0.0008651047632 | I66: 4.537869151e-06 | J66: 0.004360802151 | K66: 0.0003298025574 | L66: 4.537869151e-06 | M66: 0.001643850952
A67: 77.5 | B67: 0.00069154423 | C67: 4.094601976e-07 | D67: 0.003149673138 | E67: 0.0004880083068 | F67: 4.094601976e-07 | G67: 0.002462840215 | H67: 0.0005247373903 | I67: 2.221475995e-06 | J67: 0.002644788117 | K67: 0.0001765389408 | L67: 2.221475995e-06 | M67: 0.0008798168537
A68: 82.5 | B68: 0.0004558969733 | C68: 1.779506683e-07 | D68: 0.002076312714 | E68: 0.0003097586286 | F68: 1.779506683e-07 | G68: 0.001563218439 | H68: 0.0003182748555 | I68: 1.087505045e-06 | J68: 0.001604027516 | K68: 9.449613046e-05 | L68: 1.087505045e-06 | M68: 0.000470884049
B69: =SUM(B52:B68) -> 0.1764055378 | C69: =SUM(C52:C68) -> 0.1943279322 | D69: =($B$39*C69+(1-$B$39)*B69)*5 -> 0.8983207749 | E69: =SUM(E52:E68) -> 0.1765750666 | F69: =SUM(F52:F68) -> 0.1943279322 | G69: =($B$40*F69+(1-$B$40)*E69)*5 -> 0.8917517659 | H69: =SUM(H52:H68) -> 0.1767410163 | I69: =SUM(I52:I68) -> 0.1958096858 | J69: =($B$37*I69+(1-$B$37)*H69)*5 -> 0.8932394164 | K69: =SUM(K52:K68) -> 0.1791781091 | L69: =SUM(L52:L68) -> 0.1958096858 | M69: =($B$38*L69+(1-$B$38)*K69)*5 -> 0.9042063338
